2CCN - Level 2 Cost Centre Name,,9CCN - Level 9 Cost Centre Name,9CCC - Level 9 Cost Centre Code,9AN - Level 9 Account Name,9AC - Level 9 Account Code,Transaction Description,Date Paid,Analysed Amount,2AC - Level 2 Account Codes,Supplier Name,Supplier Code,Transaction Reference
Gloucester City Council,23UE,Gis Development Work,RY555,Contract Payments,20,REDACTED,05/02/2014,1250,CAP,Badenoch & Clark,01536P,378262
Gloucester City Council,23UE,Tic Trading,LT110,Materials For Sale,5080,Images of Gloucesterhsire,05/02/2014,60,NET,Inish Publications,10233D,378346
Gloucester City Council,23UE,Investment Property,RB500,Fire Alarm Maintenance,3053,FOLK MUSEUM CALL OUT 15/1/14,05/02/2014,396.6,NET,Adt Fire & Security Plc,54086D,377805
Gloucester City Council,23UE,Docks Complex - Services,RB100,General Repair/Maint Buildings,3000,Air conditioning engineer,19/02/2014,262.87,NET,Gea Denco Ltd,57271C,378584
Gloucester City Council,23UE,Gloucester Guildhall,LA100,Maintenance Of Equipment,5030,Guildhall: DMX BUFFER 8 way,20/02/2014,196.1,NET,Peak Hire Limited,07936J,373796
Gloucester City Council,23UE,Guildhall Events,LA200,Fees For Services Received,5350,Guildhall: DMX BUFFER 8 way,20/02/2014,35,NET,Peak Hire Limited,07936J,373796
Gloucester City Council,23UE,Docks Complex - Services,RB100,Recycling,3631,"Recycling cans, bottles, papers etc",20/02/2014,50.6,NET,Printwaste Recycling,57114W,378516
Gloucester City Council,23UE,City Museum And Art Gallery,LM200,Publications For Sale,5064,shop goods,20/02/2014,119.6,NET,Half Moon Bay Ltd,08240F,377826
Gloucester City Council,23UE,Financial Services,RT200,Vocational Training,2970,CIMA EXAM LEARNING,21/02/2014,1910.15,NET,Bpp Professional Education,13889M,378248
Gloucester City Council,23UE,Stationery Services,RS150,Stationery,5302,Busi Support Serv: Inkjet cart & others,24/02/2014,142.88,NET,Lyreco Uk Ltd,11746G,379410
Gloucester City Council,23UE,Homelessness Prevention,CH122,Fees For Services Received,5350,REDACTED,12/02/2014,300,NET,REDACTED,REDACTED,REDACTED
Gloucester City Council,23UE,Folk Museum,LM210,Overtime -Duty Managers,1503,goods,17/02/2014,84.37,NET,Cotswold Interiors,13042J,379059
Gloucester City Council,23UE,City Museum And Art Gallery,LM200,Uniforms,5201,polo shirts,17/02/2014,116.45,NET,Alexandra,50586R,379070
Gloucester City Council,23UE,Organisational Health,RC160,Fees For Services Received,5350,OH Services for Dec 13,04/02/2014,136.67,NET,Industrial Medical & Safety Services Ltd,10668L,378250
Gloucester City Council,23UE,Crematorium,HC200,Memorial Plaques,5053,"Bronze Caste Plaque Tree, Brass stem",04/02/2014,54,NET,Arkell & Hurcombe,59812T,378294
Gloucester City Council,23UE,Civil Parking Enforcement,PT741,Computer Software Maintenance,5427,E-season ticket & staff permit,04/02/2014,2006.35,NET,Chipside Ltd,06535T,378290
Gloucester City Council,23UE,Contact Centre,RB300,Basic Pay -Admin /Prof Staff,2601,REDACTED,04/02/2014,1281.68,NET,One To One Recruitment,04752H,378132
Gloucester City Council,23UE,Building Control,PT400,Basic Pay - Temporary Staff,2751,REDACTED,04/02/2014,2543.75,NET,Brg Interim Solutions,14065L,378193
Gloucester City Council,23UE,Homelessness,CH120,Fees For Services Received,5350,o/h emergency assess homeless households,05/02/2014,400,NET,Gloucestershire County Council,18650D,378115
Gloucester City Council,23UE,Civica Contract Revs & Bens,RT250,Contracted Services,6970,CIVICA SERVICES LTD,05/02/2014,136180.09,NET,Civica Uk Ltd,10841X,378336
Gloucester City Council,23UE,Guildhall Bar And Cafe,LA210,Catering Provisions -Food,5110,food,05/02/2014,4.96,NET,Total Produce Gloucester,12645E,378361
Gloucester City Council,23UE,Guildhall Bar And Cafe,LA210,Catering Provisions -Food,5110,food,05/02/2014,4.96,NET,Total Produce Gloucester,12645E,378364
Gloucester City Council,23UE,Guildhall Bar And Cafe,LA210,Catering Provisions -Food,5110,food,05/02/2014,4.96,NET,Total Produce Gloucester,12645E,378368
Gloucester City Council,23UE,Guildhall Bar And Cafe,LA210,Catering Provisions -Food,5110,food,05/02/2014,4.96,NET,Total Produce Gloucester,12645E,378369
Gloucester City Council,23UE,Gl1 Emergency Works,RY160,Contract Payments,20,SAFES RECOVERED,18/02/2014,398.65,CAP,Thornhill Security Ltd,14426A,378851
Gloucester City Council,23UE,Docks Complex - Catering Servs,RB110,Catering Provisions -Food,5110,Herbert Warehse: breads/cakes,18/02/2014,64.73,NET,Janes Pantry,24500W,378874
Gloucester City Council,23UE,Tic Coach Tickets,LT105,Materials For Sale,5080,SALES DEC 13,18/02/2014,507,NET,Marchants Coaches Ltd,48151Y,378943
Gloucester City Council,23UE,Countryside Unit,LP201,Maint Of Grounds - General,3030,GOODS,19/02/2014,6.13,NET,B&Q Trade Account,06346Y,378797
Gloucester City Council,23UE,Business Transformation & Tech,RT700,Basic Pay -Admin /Prof Staff,2601,REDACTED,20/02/2014,16.92,NET,Gloucestershire County Council,18650D,379379
Gloucester City Council,23UE,Homelessness,CH120,Rent In Advance,5516,REDACTED,12/02/2014,576.92,NET,REDACTED,REDACTED,REDACTED
Gloucester City Council,23UE,REDACTED,REDACTED,REDACTED,REDACTED,REDACTED,17/02/2014,1600,NET,REDACTED,REDACTED,REDACTED
Gloucester City Council,23UE,Flooding And Drainage,HE306,Maint Of Grounds - General,3030,THE CAUSEWAY,21/02/2014,720,NET,Rdb Safety Boat Ltd,13507J,379220
Gloucester City Council,23UE,Crematorium,HC200,Memorial Plaques,5053,Crem: 2 plaques,28/02/2014,157.25,NET,Treasured Memories Limited,11058H,379631
Gloucester City Council,23UE,Environmental Planning,LM340,Clothing,5200,Heritage mngmt: Fleece  with embroidery,28/02/2014,38.5,NET,Safpro Industrial Supply Co,39190W,379733
Gloucester City Council,23UE,Homelessness Prevention,CH122,Fees For Services Received,5350,REDACTED,05/02/2014,500,NET,REDACTED,REDACTED,REDACTED
Gloucester City Council,23UE,Homelessness,CH120,Rent In Advance,5516,REDACTED,05/02/2014,484.6,NET,REDACTED,REDACTED,REDACTED
Gloucester City Council,23UE,Off Street Car Parks,PP110,Service Charges,3020,9A EASTGATE SHOPPING CTR,10/02/2014,1007.5,NET,Workman Llp,11021M,375773
Gloucester City Council,23UE,Shopmobility,PE200,Cleaning Materials,3600,toilet roll,10/02/2014,12.09,NET,Core Hygiene Ltd,03885P,378592
Gloucester City Council,23UE,Civica Admin Charges,RT105,Photocopying,5320,L7873000015,10/02/2014,718.94,NET,Ricoh Uk Ltd,07519F,376408
Gloucester City Council,23UE,Client Revs & Bens Contract,RT240,Fees For Services Received,5350,COPY OF BIRTH CERTIFICATE,06/02/2014,10,NET,Gloucestershire County Council,04773T,378438
Gloucester City Council,23UE,Housing Works In Default,HD500,Clearance And Cleansing Fees,5384,REDACTED,25/02/2014,3120,NET,Anderson Civil Engineering Uk Ltd,09083D,379576
Gloucester City Council,23UE,Docks Complex - Services,RB100,Cleaning Materials,3600,The Docks: Toilet cleaners & others,26/02/2014,147.73,NET,Core Hygiene Ltd,03885P,379629
Gloucester City Council,23UE,Asbru - Other Funders,FP846,Other Minor Supplies Services,5590,"Parts: Keypad alarm, dusk sensor etc",26/02/2014,861.2,NET,Solon Security Ltd,02010B,379414
Gloucester City Council,23UE,Guildhall Bar And Cafe,LA210,Catering Provisions -Food,5110,GUILDHALL - Tray bake various,26/02/2014,32.55,NET,Janes Pantry,24500W,379679
Gloucester City Council,23UE,Guildhall Bar And Cafe,LA210,Basic Pay - Duty Assistants,1511,coffee,26/02/2014,141.6,NET,Ethical Addictions Ltd,11654N,379638
Gloucester City Council,23UE,Kings Sq Paving Emerg Works,RY161,Contract Payments,20,Kings Sq: to repair lights,27/02/2014,160.47,CAP,Rf Gardiner Limited,12299B,379437
Gloucester City Council,23UE,Kings Quarter,RY146,Contract Payments,20,Kings Sq: test cable from feeder pillar,27/02/2014,52.56,CAP,Rf Gardiner Limited,12299B,379440
Gloucester City Council,23UE,Investment Property,RB500,General Repair/Maint Buildings,3000,Station Road taxi rank: Board up windows,27/02/2014,84.9,NET,Rf Gardiner Limited,12299B,379199
Gloucester City Council,23UE,Off Street Car Parks,PP110,General Repair/Maint Buildings,3000,hare Lane South: Repair potholes,27/02/2014,42.14,NET,Rf Gardiner Limited,12299B,379200
Gloucester City Council,23UE,Mandatory Rent Allowances,DD100,Rent Allowances - Normal Payts,7200,REDACTED,27/02/2014,350,NET,REDACTED,REDACTED,REDACTED
Gloucester City Council,23UE,Docks Complex - Services,RB100,Recycling,3631,"Destruction paper, plastic, glass, cans",13/02/2014,337.9,NET,Printwaste Recycling,57114W,378506
Gloucester City Council,23UE,City Museum Catering,LM202,Catering Provisions -Food,5110,FOOD,13/02/2014,6.2,NET,Total Produce Gloucester,12645E,378823
Gloucester City Council,23UE,Guildhall Bar And Cafe,LA210,Catering Provisions -Food,5110,food,13/02/2014,4.96,NET,Total Produce Gloucester,12645E,378818
Gloucester City Council,23UE,Pest Control,HD400,Fees For Services Received,5350,Pest ControlBait 7/13 to 2/14,24/02/2014,791.25,NET,Falconry Services Ltd,10692P,379407
Gloucester City Council,23UE,Asset Management,RS300,Basic Pay - Temporary Staff,2751,REDACTED,24/02/2014,461.5,NET,Abatec Ltd,14249Y,379048
Gloucester City Council,23UE,Disabled Facilities Grants,CY013,Disabled Facility Grants,74,MDF5020,25/02/2014,10000,CAP,REDACTED,REDACTED,REDACTED
Gloucester City Council,23UE,Tic Coach Tickets,LT105,Materials For Sale,5080,REDACTED,25/02/2014,51.79,NET,Superbreak Mini Holidays,00712D,379552
Gloucester City Council,23UE,Crematorium,HC200,Cleaning Materials,3600,Crem: Sanitary disposal & monthly serv,18/02/2014,16.78,NET,Minster Cleaning Services,02158R,379042
Gloucester City Council,23UE,Business Transformation & Tech,RT700,Computer Hardware <5000,5420,Treasury: 500GB plugable 7.2K RPM,19/02/2014,459,NET,Qual Technology,56512N,378511
Gloucester City Council,23UE,Tic Coach Tickets,LT105,Materials For Sale,5080,REDACTED,24/02/2014,47.5,NET,Superbreak Mini Holidays,00712D,378927
Gloucester City Council,23UE,Docks Complex - Catering Servs,RB110,Catering Provisions -Food,5110,Herbert Wse: various foods,27/02/2014,112.33,NET,3663,55585U,379743
Gloucester City Council,23UE,Building Control,PT400,Basic Pay - Temporary Staff,2751,REDACTED,27/02/2014,3090.75,NET,Thatcher Associates Ltd,14060X,379726
Gloucester City Council,23UE,Homelessness,CH120,Fees For Services Received,5350,completion of medical questionnaire,27/02/2014,20.5,NET,REDACTED,REDACTED,REDACTED
Gloucester City Council,23UE,Business Support,PT250,Routine R And M - Vehicles,4011,Mot Test & parts,27/02/2014,553.12,NET,123 Car & Commercial,07651E,379738
Gloucester City Council,23UE,General Works Fund,RY203,Capital General Repairs & Main,13,Bearland Lodge: replace consumer unit,27/02/2014,280,CAP,Rf Gardiner Limited,12299B,379214
Gloucester City Council,23UE,General Drainage Works,PY241,Contract Payments,20,Property level Flood protect Prochester Rd,27/02/2014,9905.03,CAP,Uk Flood Barriers Ltd,14321S,379457
Gloucester City Council,23UE,Disabled Facilities Grants,CY013,Disabled Facility Grants,74,"Retention fm inv 5074 - 28Uxbridge Lne,",27/02/2014,742.23,CAP,L Coward & Son Ltd,47989M,379648
Gloucester City Council,23UE,REDACTED,REDACTED,REDACTED,REDACTED,REDACTED,18/02/2014,129.74,NET,REDACTED,REDACTED,REDACTED
Gloucester City Council,23UE,Business Transformation & Tech,RT700,Computer Consumables,5422,Headsets,12/02/2014,119.73,NET,Rocom,56066R,378493
Gloucester City Council,23UE,Stationery Services,RS150,Stationery,5302,stationery,12/02/2014,34.3,NET,Lyreco Uk Ltd,11746G,378583
Gloucester City Council,23UE,Flooding And Drainage,HE306,Maint Of Grounds - General,3030,The Sudbrook-Undergrowth&Rubbish clear,13/02/2014,2380,NET,Rj Contracting (Environmental) Ltd,07429H,378440
Gloucester City Council,23UE,General Drainage Works,PY241,Contract Payments,20,Fencing,13/02/2014,120,CAP,Rj Contracting (Environmental) Ltd,07429H,378426
Gloucester City Council,23UE,Legal Services,RS200,Basic Pay -Admin /Prof Staff,2601,REDACTED,20/02/2014,971.25,NET,Michael Page International Recruitment Ltd,06601P,378736
Gloucester City Council,23UE,Cedar Upgrade 2011/12,RY250,Contract Payments,20,expenses,04/02/2014,313.99,CAP,Advanced Business Solutions,06072N,377655
Gloucester City Council,23UE,Hackney Carriages,HL100,Other Minor Supplies Services,5590,REDACTED,07/02/2014,91,NET,REDACTED,REDACTED,REDACTED
Gloucester City Council,23UE,Guildhall Events,LA200,Advertising And Publicity,5702,adverts,07/02/2014,440,NET,Local World Ltd,08556P,377109
Gloucester City Council,23UE,Development Management,PT200,Advertising And Publicity,5702,Adverts ,07/02/2014,116.2,NET,Local World Ltd,08556P,377852
Gloucester City Council,23UE,Mortgage Rescue,CH128,Fees For Services Received,5350,REDACTED,26/02/2014,387.6,NET,One To One Recruitment,04752H,379365
Gloucester City Council,23UE,Docks Complex - Catering Servs,RB110,Catering Provisions -Food,5110,FOOD,14/02/2014,34.08,NET,Taynton Farm Foods,09653F,378987
Gloucester City Council,23UE,Docks Complex - Catering Servs,RB110,Catering Provisions -Food,5110,FOOD,14/02/2014,8.64,NET,Total Produce Gloucester,12645E,378971
Gloucester City Council,23UE,Guildhall Bar And Cafe,LA210,Catering Provisions -Food,5110,Guildhall: cakes etc,14/02/2014,38.15,NET,Janes Pantry,24500W,378872
Gloucester City Council,23UE,Docks Complex - Catering Servs,RB110,Catering Provisions -Food,5110,FOOD,14/02/2014,24.02,NET,Total Produce Gloucester,12645E,378954
Gloucester City Council,23UE,Cemeteries,HC300,Overtime -Building Maint Staff,1303,BAGS POST MIX,14/02/2014,47.9,NET,Millington & Ramstedt Ltd,29815S,378990
Gloucester City Council,23UE,Docks Complex - Catering Servs,RB110,Catering Provisions -Food,5110,FOOD,14/02/2014,51.74,NET,Total Produce Gloucester,12645E,378975
Gloucester City Council,23UE,REDACTED,REDACTED,REDACTED,REDACTED,REDACTED,14/02/2014,729.1,NET,REDACTED,REDACTED,REDACTED
Gloucester City Council,23UE,Docks Complex - Services,RB100,General Repair/Maint Buildings,3000,North warehouse: Litter Bin Liners,14/02/2014,265,NET,M R M Street Furniture Ltd,11045H,378808
Gloucester City Council,23UE,Docks Complex - Catering Servs,RB110,Catering Provisions -Food,5110,FOOD,14/02/2014,8.64,NET,Total Produce Gloucester,12645E,378966
Gloucester City Council,23UE,Docks Complex - Catering Servs,RB110,Catering Provisions -Food,5110,FOOD,14/02/2014,15.84,NET,Total Produce Gloucester,12645E,378969
Gloucester City Council,23UE,Civil Parking Enforcement,PT741,Contracted Services,6970,Jan14-variable services,14/02/2014,21168.17,NET,Apcoa Parking (Uk) Ltd,09954M,378528
Gloucester City Council,23UE,Solace Project,FP843,Other Minor Supplies Services,5590,VAT only,18/02/2014,0,NET,Gloucester City Homes,05244T,378883
Gloucester City Council,23UE,Gloucester Guildhall,LA100,Service Charges,3020,Guildhall: Phone charge,19/02/2014,29.99,NET,Connexus Networks Ltd,07090B,378880
Gloucester City Council,23UE,REDACTED,REDACTED,REDACTED,REDACTED,REDACTED,19/02/2014,292.77,NET,REDACTED,REDACTED,REDACTED
Gloucester City Council,23UE,Off Street Car Parks,PP110,General Repair/Maint Buildings,3000,Longsmith St: to repair lights,27/02/2014,891.25,NET,Rf Gardiner Limited,12299B,379290
Gloucester City Council,23UE,Guildhall Bar And Cafe,LA210,Catering Provisions -Food,5110,various foods,07/02/2014,189.57,NET,Woodward Foodservice,10714F,378477
Gloucester City Council,23UE,Registration Of Electors,RS400,Fees For Services Received,5350,REDACTED,07/02/2014,46.5,NET,Association Of Electoral Administrators,03013K,377131
Gloucester City Council,23UE,City Museum Catering,LM202,Catering Provisions -Food,5110,FOOD,14/02/2014,89.23,NET,Woodward Foodservice,10714F,378860
Gloucester City Council,23UE,Tic Trading,LT110,Materials For Sale,5080,MAGNETS,14/02/2014,658.3,NET,Magnartism Ltd,09098P,378852
Gloucester City Council,23UE,City Museum And Art Gallery,LM200,Advertising And Publicity,5702,Explore Gloucestershire Xmas Guide 2013,17/02/2014,300,NET,Cds Publications,59644P,379067
Gloucester City Council,23UE,Stationery Services,RS150,Stationery,5302,STATIONERY,17/02/2014,30.71,NET,Lyreco Uk Ltd,11746G,379087
Gloucester City Council,23UE,Crematorium,HC200,Memorial Plaques,5053,sanctum tablet,17/02/2014,117,NET,The Columbaria Company,55078T,379062
Gloucester City Council,23UE,Arts Educational Promotions,LA610,Operational Equipment <5000,5012,Nov13-Jan14 Muesums Education,17/02/2014,400,NET,REDACTED,REDACTED,REDACTED
Gloucester City Council,23UE,Docks Complex - Telephones,RB120,Telephones And Fax,5410,telephones,17/02/2014,145,NET,Media & Communications Ltd,14049J,379071
Gloucester City Council,23UE,Docks Complex - Services,RB100,General Repair/Maint Buildings,3000,HKP WAREHOUSE,17/02/2014,1750,NET,Sparklin,09142N,362082
Gloucester City Council,23UE,Director Resources,MR102,Fees For Services Received,5350,Professional services (legal),21/02/2014,1016.5,NET,Wragge & Co Llp,06590J,379422
Gloucester City Council,23UE,Cems/Crems Admin,HC100,Office Equipment <5000,5010,Pharos Subscription,25/02/2014,32,NET,Pharos International,00101S,379402
Gloucester City Council,23UE,Blackfriars,LA609,Sale Of Goods And Services,9230,SALES FEB 2014,24/02/2014,-16.88,NET,REDACTED,REDACTED,REDACTED
Gloucester City Council,23UE,Blackfriars,LA609,Materials For Sale,5080,SALES FEB 2014,24/02/2014,115,NET,REDACTED,REDACTED,REDACTED
Gloucester City Council,23UE,Wake Room,HC501,Catering Provisions -Food,5110,"Arbor: salad items, milk",11/02/2014,35.19,NET,Total Produce Gloucester,12645E,378671
Gloucester City Council,23UE,Wake Room,HC501,Catering Provisions -Food,5110,"Arbor: Milk, Salad items",11/02/2014,31.49,NET,Total Produce Gloucester,12645E,378674
Gloucester City Council,23UE,Wake Room,HC501,Catering Provisions -Food,5110,"Arbor: Bread, salad items",11/02/2014,12.37,NET,Total Produce Gloucester,12645E,378660
Gloucester City Council,23UE,Off Street Car Parks,PP110,General Repair/Maint Buildings,3000,St Michael's Sq car park barrier sign,27/02/2014,50,NET,Hanman Split Ltd,56889J,379636
Gloucester City Council,23UE,Asbru - Other Funders,FP846,Other Minor Supplies Services,5590,REDACTED,05/02/2014,521.36,NET,Travail Employment Ltd,49371W,378352
Gloucester City Council,23UE,Crematorium,HC200,"Seeds, Trees, Plants, Shrubs",3028,1 Pink flowering cherry tree,05/02/2014,41.66,NET,Highfield Garden Centres Ltd,48436C,378296
Gloucester City Council,23UE,Guildhall Bar And Cafe,LA210,Catering Provisions -Liquor,5111,various alchohol and non-alc drinks,05/02/2014,2381.75,NET,Cellar Supplies Cheltenham Ltd,01563L,378358
Gloucester City Council,23UE,Disabled Facilities Grants,CY013,Disabled Facility Grants,74,REDACTED,19/02/2014,2821.72,CAP,L Coward & Son Ltd,47989M,379043
Gloucester City Council,23UE,Docks Complex - Telephones,RB120,Lease Lines,5411,Fixed call charges up to 31/1/14,20/02/2014,3948.11,NET,Gamma Business Communications,10260A,378928
Gloucester City Council,23UE,Docks Complex - Telephones,RB120,Telephones And Fax,5410,ACCT 510989001 ,20/02/2014,33,NET,Virgin Media Payments Ltd,09376J,379102
Gloucester City Council,23UE,Docks Complex - Telephones,RB120,Telephones And Fax,5410,ACCT 511159201,20/02/2014,80,NET,Virgin Media Payments Ltd,09376J,379103
Gloucester City Council,23UE,Parks Contract Management,LP100,Maint Of Grounds - General,3030,MEAD ROAD,07/02/2014,2785.53,NET,Enterprise (Aol) Ltd,06695G,376927
Gloucester City Council,23UE,Homelessness,CH120,Board And Lodging,5515,various tenants,07/02/2014,194.17,NET,Carbrey Housing Ltd,11098G,378470
Gloucester City Council,23UE,Crematorium,HC200,Memorial Plaques,5053,"crem: Bronze cast plaque, Brass stem",13/02/2014,54,NET,Arkell & Hurcombe,59812T,378768
Gloucester City Council,23UE,Civil Parking Enforcement,PT741,Pcn Charges,9450,REFUND OF NCP PC17837192 PAID IN ERROR,17/02/2014,50,NET,REDACTED,REDACTED,REDACTED
Gloucester City Council,23UE,Civil Parking Enforcement,PT741,Pcn Charges,9450,REFUND PCN GO12050098,17/02/2014,70,NET,REDACTED,REDACTED,REDACTED
Gloucester City Council,23UE,Development Management,PT200,Advertising And Publicity,5702,"Citizen,Echo, ThisIs-9/1 advert",24/02/2014,116.2,NET,Local World Ltd,08556P,378517
Gloucester City Council,23UE,Homelessness,CH120,Board And Lodging,5515,"27 Park Rd voids, Carida Hse voids",03/02/2014,8831,NET,Gloucester City Homes,05244T,378242
Gloucester City Council,23UE,Business Support,PT250,Basic Pay - Temporary Staff,2751,REDACTED,04/02/2014,446.6,NET,One To One Recruitment,04752H,378254
Gloucester City Council,23UE,Guildhall Bar And Cafe,LA210,Catering Provisions -Food,5110,food,05/02/2014,4.96,NET,Total Produce Gloucester,12645E,378365
Gloucester City Council,23UE,Guildhall Bar And Cafe,LA210,Catering Provisions -Food,5110,food,05/02/2014,4.96,NET,Total Produce Gloucester,12645E,378366
Gloucester City Council,23UE,Client Revs & Bens Contract,RT240,Bailiffs Fees,5368,BRISTOW & SUTOR,05/02/2014,0,NET,Bristow & Sutor,05450M,378370
Gloucester City Council,23UE,Investment Property,RB500,General Repair/Maint Buildings,3000,FRIDGE SERVICE,06/02/2014,254.03,NET,First In Service Ltd,13364G,376663
Gloucester City Council,23UE,Wake Room,HC501,Uniforms,5201,name badges,10/02/2014,26.1,NET,Akorn Badges,51779S,377815
Gloucester City Council,23UE,Wake Room,HC501,Catering Provisions -Liquor,5111,DRINKS,18/02/2014,178.93,NET,Cellar Supplies Cheltenham Ltd,01563L,378648
Gloucester City Council,23UE,Eastgate Rooftop Emerg Works,RY159,Contract Payments,20,EASTGATE ROOFTOP CAR PARK WORKS,,3657.85,CAP,Rsw Roofing Ltd,11063G,378492
Gloucester City Council,23UE,Homelessness,CH120,Rent In Advance,5516,REDACTED,27/02/2014,311.64,NET,REDACTED,REDACTED,REDACTED
Gloucester City Council,23UE,Homelessness Prevention,CH122,Fees For Services Received,5350,REDACTED,27/02/2014,550,NET,Cgt Lettings,05899H,379742
Gloucester City Council,23UE,Countryside Unit,LP201,Water Supply,3400,JUNIPER AVE,17/02/2014,1707.13,NET,Severn Trent Water Ltd,02417P,379106
Gloucester City Council,23UE,Registration Of Electors,RS400,Postages,5400,Electoral Reg: Postage,17/02/2014,13.53,NET,Royal Mail S.Wales & South West,35830S,379104
Gloucester City Council,23UE,Cemeteries,HC300,Maint Of Grounds - General,3030,POSTS,17/02/2014,87.29,NET,Millington & Ramstedt Ltd,29815S,378989
Gloucester City Council,23UE,Cemeteries,HC300,Routine R And M - Vehicles,4011,VISIT 14/01/14,17/02/2014,435,NET,T H White Ltd,08413P,378996
Gloucester City Council,23UE,Wake Room,HC501,Catering Provisions -Food,5110,Arbor: various foods,21/02/2014,234.34,NET,3663,55585U,379416
Gloucester City Council,23UE,Civic Admin And Hospitality,RC210,Events,5952,Mayor children's party - 2 sessions,21/02/2014,352.5,NET,Wall's Club Ltd,08375W,379453
Gloucester City Council,23UE,Countryside Unit,LP201,Safety Equipment,5013,Robinswood Hill Country Park: goods,27/02/2014,1033,NET,Greentek Solutions Ltd,13702J,379637
Gloucester City Council,23UE,Homelessness Prevention,CH122,Fees For Services Received,5350,REDACTED,28/02/2014,500,NET,Tj Properties,14666B,379785
Gloucester City Council,23UE,Homelessness Prevention,CH122,Fees For Services Received,5350,REDACTED,05/02/2014,500,NET,REDACTED,REDACTED,REDACTED
Gloucester City Council,23UE,Parks Contract Management,LP100,Maint Of Grounds - General,3030,Repair Ramp Alma Place Multiplay area,06/02/2014,48.65,NET,Enterprise (Aol) Ltd,06695G,378028
Gloucester City Council,23UE,Homelessness Prevention,CH122,Fees For Services Received,5350,REDACTED,11/02/2014,285,NET,REDACTED,REDACTED,REDACTED
Gloucester City Council,23UE,Homelessness Prevention,CH122,Fees For Services Received,5350,REDACTED,17/02/2014,175,NET,Surelet,11158G,379105
Gloucester City Council,23UE,Gloucester Guildhall,LA100,Security Services Fees,5351,CASH HANDLING,26/02/2014,88.16,NET,G4s Cash Solutions (Uk) Ltd,04290V,379553
Gloucester City Council,23UE,Tea Room,HC500,Catering Provisions -Food,5110,Arbor: Tray bakes etc,26/02/2014,169.52,NET,Janes Pantry,24500W,379680
Gloucester City Council,23UE,Street Trading Licences,HM520,Other Minor Supplies Services,5590,Northgate st: change RCD unit,27/02/2014,111.54,NET,Rf Gardiner Limited,12299B,379436
Gloucester City Council,23UE,General Works Fund,RY203,Capital Lighting Schemes,15,St Oswalds Priory lighting fault,27/02/2014,58.16,CAP,Rf Gardiner Limited,12299B,379663
Gloucester City Council,23UE,Tourism Marketing,LT100,Window Cleaning,3610,TIC 7 x  Weekly window clean,26/02/2014,42,NET,Initial Facilities Window Cleaning,00442K,379668
Gloucester City Council,23UE,Wake Room,HC501,Catering Provisions -Food,5110,FOOD,13/02/2014,107.47,NET,3663,55585U,378853
Gloucester City Council,23UE,Guildhall Events,LA200,Fees For Services Received,5350,guildhall: projector & building works.,13/02/2014,503.13,NET,Cinema Projection Services,14502K,378793
Gloucester City Council,23UE,Development Management,PT200,Employee Related Advertising,2920,advert on townplanningjobs.com,13/02/2014,59,NET,Ua Solutions Ltd,14460A,378781
Gloucester City Council,23UE,City Museum Catering,LM202,Catering Provisions -Food,5110,FOOD,13/02/2014,4.96,NET,Total Produce Gloucester,12645E,378810
Gloucester City Council,23UE,Guildhall Bar And Cafe,LA210,Catering Provisions -Food,5110,FOOD,13/02/2014,4.96,NET,Total Produce Gloucester,12645E,378816
Gloucester City Council,23UE,City Museum Catering,LM202,Catering Provisions -Food,5110,FOOD,13/02/2014,7.44,NET,Total Produce Gloucester,12645E,378822
Gloucester City Council,23UE,Business Transformation & Tech,RT700,Computer Software Maintenance,5427,Year Software Lincence fee 130Rev&Bens,13/02/2014,2500,NET,Northgate Information Solutions Uk Ltd,08982S,378535
Gloucester City Council,23UE,Financial Services,RT200,Publications,5060,Books - local authority accounting CoP,21/02/2014,1153.75,NET,Cipfa Business Limited,09260F,378200
Gloucester City Council,23UE,Business Transformation & Tech,RT700,Computer Consumables,5422,keyboards & mice,19/02/2014,137.15,NET,Dell Computers Corporation Ltd,55920C,379066
Gloucester City Council,23UE,City Museum Catering,LM202,Catering Provisions -Food,5110,Cafe Nerva: foods,27/02/2014,91,NET,Woodward Foodservice,10714F,379747
Gloucester City Council,23UE,City Museum Catering,LM202,Catering Provisions -Food,5110,FOOD,27/02/2014,7.44,NET,Total Produce Gloucester,12645E,379666
Gloucester City Council,23UE,City Museum Catering,LM202,Catering Provisions -Food,5110,food,27/02/2014,6.2,NET,Total Produce Gloucester,12645E,379645
Gloucester City Council,23UE,Off Street Car Parks,PP110,General Repair/Maint Buildings,3000,Kingswalk Car Park: repair lights,27/02/2014,462.62,NET,Rf Gardiner Limited,12299B,379441
Gloucester City Council,23UE,Flood Defence Grants To Househ,CY011,Other Capital Grants,89,Safe at home contribution Q3 Dec13-Feb14,10/02/2014,4934,CAP,Gloucestershire County Council,18650D,378433
Gloucester City Council,23UE,Guildhall Bar And Cafe,LA210,Catering Provisions -Food,5110,Guildhall: green top milk,18/02/2014,4.96,NET,Total Produce Gloucester,12645E,379207
Gloucester City Council,23UE,Homelessness,CH120,Removal And Storage Fees,5513,REDACTED,18/02/2014,78.21,NET,Advanced Removals & Storage Ltd,57142R,379185
Gloucester City Council,23UE,Countryside Unit,LP201,Major R And M - Vehicles,4010,Goods: Robinswood Hill Country Park,12/02/2014,60.21,NET,The One Stop Plastics Shop,11048L,378541
Gloucester City Council,23UE,Guildhall Events,LA200,Advertising And Publicity,5702,PRINTING,14/02/2014,94.25,NET,Service Point Uk Ltd*,58885Y,378811
Gloucester City Council,23UE,Guildhall Bar And Cafe,LA210,Catering Provisions -Food,5110,FOOD,14/02/2014,4.96,NET,Total Produce Gloucester,12645E,378820
Gloucester City Council,23UE,Daniels Brook S106,LY120,Contract Payments,20,BODIAM AVE,14/02/2014,3950,CAP,Mpl Wrought Iron Llp,03907P,378844
Gloucester City Council,23UE,Business Transformation & Tech,RT700,Computer Software Maintenance,5427,AXXIA SUPPORT,14/02/2014,3698.2,NET,Lexis Nexis Ltd,01712U,377328
Gloucester City Council,23UE,Homelessness Prevention,CH122,Fees For Services Received,5350,REDACTED,18/02/2014,350,NET,Donaldson & Newman Ltd,66678G,379265
Gloucester City Council,23UE,Utilities,PT502,Electricity Supply,3110,REDACTED,,45.45,NET,Southern Electric,05714A,379226
Gloucester City Council,23UE,REDACTED,REDACTED,REDACTED,REDACTED,REDACTED,04/02/2014,290,NET,REDACTED,REDACTED,REDACTED
Gloucester City Council,23UE,Printing,RP103,Fees For Services Received,5350,"Museum panels, lettering, walk maps",06/02/2014,259,NET,Alpha Colour Printers Ltd,00945B,378331
Gloucester City Council,23UE,Business Transformation & Tech,RT700,Basic Pay - Temporary Staff,2751,20hours consultancy,07/02/2014,600,NET,Ffox Software Ltd,10665T,378259
Gloucester City Council,23UE,Homelessness,CH120,Photocopying,5320,REDACTED,07/02/2014,20.5,NET,Gloucester City Health Centre,02093U,378482
Gloucester City Council,23UE,Docks Complex - Services,RB100,Cleaning Materials,3600,various toilet rolls & cleaning items,07/02/2014,55.19,NET,Cleanmy Ltd,06971S,378064
Gloucester City Council,23UE,Allotments,HI104,Subcontractors Fees,5357,Rat poison&others Escourrt Pk Allotments,12/02/2014,89.58,NET,Estcourt Park Allotment Association,05540K,378349
Gloucester City Council,23UE,Legal Services,RS200,Basic Pay -Admin /Prof Staff,2601,REDACTED,14/02/2014,752.5,NET,Michael Page International Recruitment Ltd,06601P,378733
Gloucester City Council,23UE,Countryside Unit,LP201,General Repair/Maint Buildings,3000,rangers centre: more work on CCTV,14/02/2014,610.72,NET,Adt Fire & Security Plc,54086D,378792
Gloucester City Council,23UE,Hempsted Market/Car Boot,HM234,Security Services Fees,5351,SECURITY JAN 2014,14/02/2014,681.6,NET,Nsgl Ltd,12539E,378941
Gloucester City Council,23UE,Cemeteries,HC300,Routine R And M - Vehicles,4011,VISIT 14/01/14,14/02/2014,405,NET,T H White Ltd,08413P,378995
Gloucester City Council,23UE,Docks Complex - Catering Servs,RB110,Catering Provisions -Food,5110,FOOD,14/02/2014,44.41,NET,Total Produce Gloucester,12645E,378976
Gloucester City Council,23UE,Docks Complex - Catering Servs,RB110,Catering Provisions -Food,5110,FOOD,14/02/2014,4.25,NET,Total Produce Gloucester,12645E,378981
Gloucester City Council,23UE,Docks Complex - Catering Servs,RB110,Catering Provisions -Food,5110,FOOD,14/02/2014,39.79,NET,Total Produce Gloucester,12645E,378982
Gloucester City Council,23UE,Docks Complex - Catering Servs,RB110,Catering Provisions -Food,5110,FOOD,14/02/2014,26.34,NET,Total Produce Gloucester,12645E,378962
Gloucester City Council,23UE,Environmental Planning,LM340,Repair/Maint Of Monuments,3004,REDACTED,19/02/2014,517,NET,F J Cambridge & Co Ltd,48841N,379193
Gloucester City Council,23UE,Hkp Accomodation Review,RY163,Contract Payments,20,credited part of invoice 11148,27/02/2014,1226.64,CAP,Rf Gardiner Limited,12299B,379749
Gloucester City Council,23UE,Legal Services,RS200,Basic Pay -Admin /Prof Staff,2601,REDACTED,06/02/2014,391.81,NET,Premiere Employment Ltd,55468Z,378034
Gloucester City Council,23UE,REDACTED,REDACTED,REDACTED,REDACTED,REDACTED,10/02/2014,85,NET,REDACTED,REDACTED,REDACTED
Gloucester City Council,23UE,Civil Parking Enforcement,PT741,On Street Parking Charges,6550,"cost of parking income, Dec 2013",10/02/2014,29266.72,NET,Gloucestershire County Council,18650D,377751
Gloucester City Council,23UE,Business Support,PT250,Microfilming / Cd-Rom Storage,5330,Archival Storage & Retrieval,11/02/2014,24.5,NET,Transmedia Technology Ltd,08635T,378529
Gloucester City Council,23UE,REDACTED,REDACTED,REDACTED,REDACTED,REDACTED,11/02/2014,195.5,NET,REDACTED,REDACTED,REDACTED
Gloucester City Council,23UE,Docks Complex - Catering Servs,RB110,Catering Provisions -Food,5110,coffee,17/02/2014,70.8,NET,Ethical Addictions Ltd,11654N,379068
Gloucester City Council,23UE,Cemeteries,HC300,Major R And M - Vehicles,4010,tap & go head,17/02/2014,240,NET,Garden Machinery Gloucester,55641K,379077
Gloucester City Council,23UE,Folk Museum,LM210,Exhibits And Collections,5038,display case works,17/02/2014,528,NET,About Presentation Ltd,12373R,379058
Gloucester City Council,23UE,Cemeteries,HC300,"Seeds, Trees, Plants, Shrubs",3028,Single rose,25/02/2014,24.99,NET,Highfield Garden Centres Ltd,48436C,379404
Gloucester City Council,23UE,Blackfriars,LA609,Materials For Sale,5080,SALES FEB 2014,24/02/2014,135,NET,REDACTED,REDACTED,REDACTED
Gloucester City Council,23UE,Wake Room,HC501,Catering Provisions -Food,5110,"Arbor: florette, milk, cumumber, peppers",11/02/2014,17.94,NET,Total Produce Gloucester,12645E,378673
Gloucester City Council,23UE,Wake Room,HC501,Catering Provisions -Food,5110,"arbor: Milk, veg",11/02/2014,8.83,NET,Total Produce Gloucester,12645E,378664
Gloucester City Council,23UE,Wake Room,HC501,Catering Provisions -Food,5110,"Arbour: milk, veg",11/02/2014,35.98,NET,Total Produce Gloucester,12645E,378667
Gloucester City Council,23UE,Wake Room,HC501,Catering Provisions -Food,5110,arbor: Beef & turkey,11/02/2014,20.6,NET,Total Produce Gloucester,12645E,378657
Gloucester City Council,23UE,Cemeteries,HC300,Maint Of Grounds - General,3030,CREM,18/02/2014,397.75,NET,Enterprise (Aol) Ltd,06695G,378835
Gloucester City Council,23UE,Cems/Crems Admin,HC100,Office Equipment <5000,5010,CARTRIDGES,18/02/2014,59.11,NET,Office Star Group Ltd,55874H,378948
Gloucester City Council,23UE,Cedar Upgrade 2011/12,RY250,Contract Payments,20,Expenses recharges-subsis&miles,27/02/2014,69.35,CAP,Advanced Business Solutions,06072N,379280
Gloucester City Council,23UE,REDACTED,REDACTED,REDACTED,REDACTED,REDACTED,05/02/2014,1800,NET,REDACTED,REDACTED,REDACTED
Gloucester City Council,23UE,Crematorium,HC200,"Seeds, Trees, Plants, Shrubs",3028,1  standard red rose tree,05/02/2014,29.99,NET,Highfield Garden Centres Ltd,48436C,378295
Gloucester City Council,23UE,City Museum And Art Gallery,LM200,Publications For Sale,5064,novelty notepads.,05/02/2014,68.4,NET,Elgate,11620G,378341
Gloucester City Council,23UE,Folk Museum,LM210,Publications For Sale,5064,novelty notepads.,05/02/2014,68.4,NET,Elgate,11620G,378341
Gloucester City Council,23UE,Homelessness,CH120,Board And Lodging,5515,various tenants,07/02/2014,1563.09,NET,REDACTED,REDACTED,REDACTED
Gloucester City Council,23UE,Homelessness,CH120,Board And Lodging,5515,various tenants,07/02/2014,686.96,NET,Carbrey Housing Ltd,11098G,378471
Gloucester City Council,23UE,Homelessness,CH120,Rent In Advance,5516,REDACTED,17/02/2014,576.92,NET,Chapter 1,79576RV,379110
Gloucester City Council,23UE,Members Support,RC300,Members Training,5535,Annual Public health conf,03/02/2014,229,NET,Local Government Association,11683F,378063
Gloucester City Council,23UE,Mortgage Rescue,CH128,Fees For Services Received,5350,REDACTED,03/02/2014,387.6,NET,One To One Recruitment,04752H,378133
Gloucester City Council,23UE,Guildhall Bar And Cafe,LA210,Catering Provisions -Food,5110,food,05/02/2014,14.88,NET,Total Produce Gloucester,12645E,378359
Gloucester City Council,23UE,Guildhall Bar And Cafe,LA210,Catering Provisions -Food,5110,food,05/02/2014,4.96,NET,Total Produce Gloucester,12645E,378362
Gloucester City Council,23UE,Guildhall Events,LA200,Fees For Services Received,5350,new network point,18/02/2014,110,NET,First4coms Ltd,08769U,378790
Gloucester City Council,23UE,Group Mgr Financial Services,GO100,Vocational Training,2970,Local Auth Final acc closedown,19/02/2014,250,NET,Cipfa Business Limited,09260F,379286
Gloucester City Council,23UE,Aspire Admin Charges,LC105,Other Minor Income,9900,BAILIFF PAYMENTS,13/02/2014,21,NET,Aspire Sports & Cultural Trust,08135V,378806
Gloucester City Council,23UE,Gl1 Pool Air Handling System,LY152,Contract Payments,20,GL1 swimming pool,17/02/2014,975,CAP,Rpa,01710Y,377108
Gloucester City Council,23UE,Homelessness,CH120,Fees For Services Received,5350,MEDICAL REPORTS,17/02/2014,155,NET,Now Medical,03468L,378946
Gloucester City Council,23UE,Business Transformation & Tech,RT700,Basic Pay - Temporary Staff,2751,REDACTED,17/02/2014,5542,NET,Vector Resourcing Ltd,11664K,378939
Gloucester City Council,23UE,Asbru - Other Funders,FP846,Other Minor Supplies Services,5590,REDACTED,21/02/2014,429.89,NET,Travail Employment Ltd,49371W,379364
Gloucester City Council,23UE,Wake Room,HC501,Catering Provisions -Food,5110,Arbor: Buttermilk tableau,21/02/2014,130,NET,3663,55585U,379417
Gloucester City Council,23UE,Wake Room,HC501,Catering Provisions -Food,5110,arbor: various food,21/02/2014,153.65,NET,3663,55585U,379430
Gloucester City Council,23UE,REDACTED,REDACTED,REDACTED,REDACTED,REDACTED,21/02/2014,233,NET,REDACTED,REDACTED,REDACTED
Gloucester City Council,23UE,Herbert Reception Upgrade,RY201,Contract Payments,20,"RecurServ&chargesEnd31/3,OneOff24/1",21/02/2014,6113.64,CAP,Regus,13861L,379400
Gloucester City Council,23UE,Homelessness,CH120,Rent In Advance,5516,REDACTED,28/02/2014,432.76,NET,The Property Centre,05777Z,379786
Gloucester City Council,23UE,Nms Contract,HI102,Contracted Services,6970,WALK BEHIND JAN 14,03/02/2014,563.33,NET,Enterprise (Aol) Ltd,06695G,377499
Gloucester City Council,23UE,REDACTED,REDACTED,REDACTED,REDACTED,REDACTED,05/02/2014,390,NET,REDACTED,REDACTED,REDACTED
Gloucester City Council,23UE,REDACTED,REDACTED,REDACTED,REDACTED,REDACTED,11/02/2014,150,NET,REDACTED,REDACTED,REDACTED
Gloucester City Council,23UE,REDACTED,REDACTED,REDACTED,REDACTED,REDACTED,11/02/2014,150,NET,REDACTED,REDACTED,REDACTED
Gloucester City Council,23UE,Barbican Car Park,RB543,General Repair/Maint Buildings,3000,barbican car park weed clearance,06/02/2014,450,NET,Rj Contracting (Environmental) Ltd,07429H,378031
Gloucester City Council,23UE,Trees S106 Fr Mcdonalds,LY118,Contract Payments,20,"Supply, Plant&MaintainEasternAvenue",06/02/2014,860,CAP,Enterprise (Aol) Ltd,06695G,378023
Gloucester City Council,23UE,Civica Contract Revs & Bens,RT250,Contracted Services,6970,Dec13 pensions,10/02/2014,10399.15,NET,Civica Uk Ltd,10841X,376956
Gloucester City Council,23UE,Cems/Crems Admin,HC100,Security Services Fees,5351,CASH HANDLING,26/02/2014,100.51,NET,G4s Cash Solutions (Uk) Ltd,04290V,379553
Gloucester City Council,23UE,City Museum And Art Gallery,LM200,Security Services Fees,5351,CASH HANDLING,26/02/2014,88.16,NET,G4s Cash Solutions (Uk) Ltd,04290V,379553
Gloucester City Council,23UE,Client Revs & Bens Contract,RT240,Bailiffs Fees,5368,VAT only,26/02/2014,0,NET,Bristow & Sutor,05450M,379548
Gloucester City Council,23UE,Museum Phase 2 Hlf,GY001,Contract Payments,20,Growth Accelerator grant,26/02/2014,750,CAP,Kochi Ltd T/A Vinings Restaurant,06873T,379676
Gloucester City Council,23UE,Docks Complex - Services,RB100,Cleaning Materials,3600,cleaning materials,26/02/2014,156.04,NET,Core Hygiene Ltd,03885P,379075
Gloucester City Council,23UE,Avenger Task Force,FP842,Other Minor Supplies Services,5590,REDACTED,26/02/2014,1344.4,NET,Infobuzz Ltd,4743C,379674
Gloucester City Council,23UE,Guildhall Bar And Cafe,LA210,Catering Provisions -Food,5110,Guildhall fruit & veg.,26/02/2014,179.46,NET,Woody's Fruit & Veg,11798L,379665
Gloucester City Council,23UE,Off Street Car Parks,PP110,General Repair/Maint Buildings,3000,Longsmith car Park: repair lights,27/02/2014,209.57,NET,Rf Gardiner Limited,12299B,379432
Gloucester City Council,23UE,Investment Property,RB500,General Repair/Maint Buildings,3000,Coney Hill Crem: Block Urinals,27/02/2014,34.08,NET,Rf Gardiner Limited,12299B,379201
Gloucester City Council,23UE,Off Street Car Parks,PP110,General Repair/Maint Buildings,3000,LadybellegateSt Car Park repair potholes,27/02/2014,158.59,NET,Rf Gardiner Limited,12299B,379205
Gloucester City Council,23UE,General Works Fund,RY203,Capital General Repairs & Main,13,Bearland Lodge: disconnect lighting,27/02/2014,84,CAP,Rf Gardiner Limited,12299B,379190
Gloucester City Council,23UE,General Works Fund,RY203,Capital General Repairs & Main,13,"Infirmary Arcade, Pitt St lights fault",27/02/2014,92.3,CAP,Rf Gardiner Limited,12299B,379662
Gloucester City Council,23UE,Client Revs & Bens Contract,RT240,Fees For Services Received,5350,arrest & detention defaulter Council Tax,26/02/2014,49.5,NET,Assevarate Ltd,11749A,379653
Gloucester City Council,23UE,Legal Services,RS200,Basic Pay -Admin /Prof Staff,2601,REDACTED,13/02/2014,630.54,NET,Sellick Partnership Group Ltd,11057C,378846
Gloucester City Council,23UE,Group Mgr Financial Services,GO100,Vocational Training,2970,Local Auth Final Acc closedown,13/02/2014,250,NET,Cipfa Business Limited,09260F,378788
Gloucester City Council,23UE,City Museum Catering,LM202,Catering Provisions -Food,5110,FOOD,13/02/2014,7.44,NET,Total Produce Gloucester,12645E,378824
Gloucester City Council,23UE,Cemeteries,HC300,Fertilisers,3029,yellow rose tree,13/02/2014,24.99,NET,Highfield Garden Centres Ltd,48436C,378591
Gloucester City Council,23UE,Business Transformation & Tech,RT700,Basic Pay - Temporary Staff,2751,20 hours consult,13/02/2014,600,NET,Ffox Software Ltd,10665T,378779
Gloucester City Council,23UE,Crematorium,HC200,Vocational Training,2970,REDACTED,19/02/2014,595,NET,Institute Of Cemetery & Crematorium M'Ment,01116T,379273
Gloucester City Council,23UE,Business Transformation & Tech,RT700,Computer Software Maintenance,5427,"support1/3/14-28/2/15,clarity software",24/02/2014,3208.44,NET,Clarity Retail Systems,10290R,378884
Gloucester City Council,23UE,Business Transformation & Tech,RT700,Basic Pay - Temporary Staff,2751,20 hours consultancy,18/02/2014,600,NET,Ffox Software Ltd,10665T,379191
Gloucester City Council,23UE,City Museum Catering,LM202,Catering Provisions -Food,5110,Cafe Nerva: foods and equipment,27/02/2014,142.81,NET,Woodward Foodservice,10714F,379744
Gloucester City Council,23UE,City Museum Catering,LM202,Catering Provisions -Food,5110,food,27/02/2014,7.44,NET,Total Produce Gloucester,12645E,379646
Gloucester City Council,23UE,Pest Control,HD400,Fees For Services Received,5350,various pest control,27/02/2014,2338.43,NET,Falconry Services Ltd,10692P,379729
Gloucester City Council,23UE,Rehousing,CH111,Fees For Services Received,5350,Medical information,27/02/2014,20.5,NET,Barnwood Medical Practice,11672L,379736
Gloucester City Council,23UE,Financial Services,RT200,Basic Pay - Temporary Staff,2751,REDACTED,27/02/2014,543.75,NET,Robert Half Ltd,03959K,379090
Gloucester City Council,23UE,Crematorium,HC200,Memorial Plaques,5053,Carriage charge ommitted from CR03965,28/02/2014,3.5,NET,Treasured Memories Limited,11058H,379630
Gloucester City Council,23UE,REDACTED,REDACTED,REDACTED,5355,REDACTED,10/02/2014,800,NET,REDACTED,REDACTED,REDACTED
Gloucester City Council,23UE,Civil Parking Enforcement,PT741,Computer Software Maintenance,5427,Provision of e-season-ticket Jan 2014,18/02/2014,904.44,NET,Chipside Ltd,06535T,379216
Gloucester City Council,23UE,Guildhall Bar And Cafe,LA210,Catering Provisions -Liquor,5111,Guildhall: drinks (alcholic & non),18/02/2014,161.97,NET,Cellar Supplies Cheltenham Ltd,01563L,379181
Gloucester City Council,23UE,Guildhall Bar And Cafe,LA210,Catering Provisions -Food,5110,guildhall: milk,18/02/2014,4.96,NET,Total Produce Gloucester,12645E,379213
Gloucester City Council,23UE,City Museum,RY153,Contract Payments,20,City Museum lift service,13/02/2014,1214.98,CAP,Pickerings Europe Ltd*,58816U,377139
Gloucester City Council,23UE,Civica Admin Charges,RT105,Photocopying,5320,L9074200048,13/02/2014,612.84,NET,Ricoh Uk Ltd,07519F,376406
Gloucester City Council,23UE,Cedar Upgrade 2011/12,RY250,Contract Payments,20,Expenses,04/02/2014,267.39,CAP,Advanced Business Solutions,06072N,377654
Gloucester City Council,23UE,Nms Contract,HI102,Contracted Services,6970,"Recycable Wood collected 3/12,8/1/14",06/02/2014,1359.32,NET,Enterprise (Aol) Ltd,06695G,378032
Gloucester City Council,23UE,Cctv Revenue Budget,FP501,Security Equipment Serv/Repair,3038,CCTv maintenance - Jan 2014,07/02/2014,1726.67,NET,Quadrant Security Group Ltd,05109A,378486
Gloucester City Council,23UE,Cedar Upgrade 2011/12,RY250,Contract Payments,20,1 day consultancy for capture follow up,07/02/2014,850,CAP,Advanced Business Solutions,06072N,378435
Gloucester City Council,23UE,Docks Complex - Services,RB100,Cleaning Materials,3600,"Toilet rolls, hand towels, black bags",07/02/2014,112.49,NET,Core Hygiene Ltd,03885P,378128
Gloucester City Council,23UE,History Festival,LT401,Fees For Services Received,5350,ticket sales for Glos History Festival,12/02/2014,3724.17,NET,Marketing Gloucester Ltd,08925E,378534
Gloucester City Council,23UE,Gf Lifelinks,CH180,Contracted Services,6970,Feb 14 management fees (5 items),10/02/2014,5270.83,NET,Gloucester City Homes,05244T,378379
Gloucester City Council,23UE,Docks Complex - Telephones,RB120,Telephones And Fax,5410,ACCT 511791401,19/02/2014,30,NET,Virgin Media Payments Ltd,09376J,378857
Gloucester City Council,23UE,Docks Complex - Catering Servs,RB110,Catering Provisions -Food,5110,FOOD,14/02/2014,638.97,NET,3663,55585U,378988
Gloucester City Council,23UE,Docks Complex - Catering Servs,RB110,Catering Provisions -Food,5110,FOOD,14/02/2014,15.76,NET,Total Produce Gloucester,12645E,378973
Gloucester City Council,23UE,Docks Complex - Catering Servs,RB110,Catering Provisions -Food,5110,FOOD,14/02/2014,258.88,NET,3663,55585U,378999
Gloucester City Council,23UE,Docks Complex - Catering Servs,RB110,Catering Provisions -Food,5110,FOOD,14/02/2014,32.24,NET,Total Produce Gloucester,12645E,378964
Gloucester City Council,23UE,Guildhall Bar And Cafe,LA210,Catering Provisions -Food,5110,various foods,07/02/2014,232.73,NET,Woodward Foodservice,10714F,378476
Gloucester City Council,23UE,Guildhall Events,LA200,Advertising And Publicity,5702,Guildhall Feb/March brochure distribution,10/02/2014,400,NET,Glide Media,58829J,378515
Gloucester City Council,23UE,Retail Market - Landlord,HM300,Cleaning Materials,3600,CLEANING MATERIALS,10/02/2014,72.68,NET,Core Hygiene Ltd,03885P,376675
Gloucester City Council,23UE,Investment Property,RB500,Maint Of Grounds - General,3030,JAPANESE KNOTWEED TREATMENT,25/02/2014,230,NET,Complete Weed Control,10320H,373711
Gloucester City Council,23UE,REDACTED,REDACTED,REDACTED,REDACTED,REDACTED,11/02/2014,204,NET,REDACTED,REDACTED,REDACTED
Gloucester City Council,23UE,Wake Room,HC501,Catering Provisions -Food,5110,FOOD,14/02/2014,370.25,NET,3663,55585U,378865
Gloucester City Council,23UE,St Michaels Tower,GY016,Contract Payments,20,ST MICHAELS TOWER,17/02/2014,812,CAP,Sally Strachey Historic Conservation Ltd,14202B,379088
Gloucester City Council,23UE,Rehousing,CH111,Fees For Services Received,5350,medical report,17/02/2014,20.5,NET,Gloucester City Health Centre,02093U,379060
Gloucester City Council,23UE,Homelessness,CH120,Fees For Services Received,5350,Medical report,21/02/2014,20.5,NET,Longlevens Surgery,57415C,379421
Gloucester City Council,23UE,City Museum Catering,LM202,Catering Provisions -Liquor,5111,City Museum: various soft drinks,25/02/2014,52.46,NET,Cellar Supplies Cheltenham Ltd,01563L,379541
Gloucester City Council,23UE,Investment Property,RB500,Fire Alarm Maintenance,3053,ADT FIRE & SECURITY PLC,06/02/2014,170,NET,Adt Fire & Security Plc,54086D,378431
Gloucester City Council,23UE,Herbert Reception Upgrade,RY201,Contract Payments,20,N Warehouse - building/decorating works,10/02/2014,2040,CAP,L Coward & Son Ltd,47989M,378196
Gloucester City Council,23UE,Nms Contract,HI102,Contracted Services,6970,1/12th Feb 14 - contract payment,11/02/2014,508825.75,NET,Enterprise (Aol) Ltd,06695G,378519
Gloucester City Council,23UE,Countryside Unit,LP201,General Repair/Maint Buildings,3000,Racking related items.,11/02/2014,559.7,NET,Rapid Racking Ltd,54545S,378677
Gloucester City Council,23UE,Cemeteries,HC300,Routine R And M - Vehicles,4011,Wooden shaft,11/02/2014,6.08,NET,Spaldings,48759Y,378654
Gloucester City Council,23UE,Tree Planting Grant Funded,LY150,Contract Payments,20,Alma Place tree planting,25/02/2014,608,CAP,Greenfields Garden Services Ltd,48130G,379056
Gloucester City Council,23UE,Business Support,PT250,Routine R And M - Vehicles,4011,VN58 VOD,05/02/2014,102.25,NET,123 Car & Commercial,07651E,377716
Gloucester City Council,23UE,Business Support,PT250,Fuel,4012,fuel,03/03/2014,318.94,NET,Allstar Business Solutions Ltd (Arval),06594A,379556
Gloucester City Council,23UE,Homelessness,CH120,Board And Lodging,5515,various tenants,07/02/2014,1425.31,NET,REDACTED,REDACTED,REDACTED
Gloucester City Council,23UE,Homelessness,CH120,Board And Lodging,5515,various tenants,07/02/2014,164.29,NET,Dorchester House Trust,12298D,378468
Gloucester City Council,23UE,Guildhall Bar And Cafe,LA210,Catering Provisions -Liquor,5111,Guildhall: ales,13/02/2014,140,NET,Gloucester Brewery,13373F,378769
Gloucester City Council,23UE,Financial Services,RT200,Consultants Fees,5349,REDACTED,03/02/2014,3975,NET,Robert Half Ltd,03959K,377895
Gloucester City Council,23UE,Business Transformation & Tech,RT700,Security Testing - Govt Connec,5446,Engineers expenses - hotel subsitence,04/02/2014,240.63,NET,Randomstorm,09070N,378263
Gloucester City Council,23UE,Hmo Licences,HE520,Operational Equipment <5000,5012,Service fee for comfort audio service,04/02/2014,20,NET,Gordon Morris Ltd,59508Z,378264
Gloucester City Council,23UE,Director Resources,MR102,Fees For Services Received,5350,"Employment advice, Prof Serv",04/02/2014,1833,NET,Wragge & Co Llp,06590J,378299
Gloucester City Council,23UE,Contact Centre,RB300,Basic Pay -Admin /Prof Staff,2601,REDACTED,04/02/2014,216.92,NET,One To One Recruitment,04752H,378131
Gloucester City Council,23UE,Contact Centre,RB300,Basic Pay -Admin /Prof Staff,2601,REDACTED,04/02/2014,809.56,NET,One To One Recruitment,04752H,377854
Gloucester City Council,23UE,Targeted Historic Grants,GY008,Contract Payments,20,Exterior barriers,04/02/2014,156,CAP,Squirty Ink,13834P,378238
Gloucester City Council,23UE,Guildhall Bar And Cafe,LA210,Catering Provisions -Food,5110,food,05/02/2014,4.68,NET,Total Produce Gloucester,12645E,378360
Gloucester City Council,23UE,Client Revs & Bens Contract,RT240,Bailiffs Fees,5368,VAT only invoice,05/02/2014,0,NET,Bristow & Sutor,05450M,378371
Gloucester City Council,23UE,Docks Complex - Services,RB100,Cleaning Materials,3600,CLEANING MATERIALS,18/02/2014,12.27,NET,Core Hygiene Ltd,03885P,378649
Gloucester City Council,23UE,Tic Coach Tickets,LT105,Materials For Sale,5080,SALES JAN 2014,18/02/2014,85,NET,Wetm Ltd,05656Z,378854
Gloucester City Council,23UE,Client Revs & Bens Contract,RT240,Legal Fees,5731,Pall Mall Investments Ltd v city council,26/02/2014,2000,NET,REDACTED,REDACTED,REDACTED
Gloucester City Council,23UE,Cemeteries,HC300,Clothing,5200,"Blouses, shirts & aprons",26/02/2014,387.47,NET,Quality Embroidery & Printing,06518T,379275
Gloucester City Council,23UE,Homelessness Prevention,CH122,Fees For Services Received,5350,REDACTED,12/02/2014,650,NET,REDACTED,REDACTED,REDACTED
Gloucester City Council,23UE,Blackfriars Priory,RY207,Capital General Repairs & Main,13,Site survey - Blackfriars ceiling design,21/02/2014,1020,CAP,Airsculpt Ltd,14545R,379401
Gloucester City Council,23UE,Homelessness,CH120,Rent In Advance,5516,REDACTED,28/02/2014,484.6,NET,Tj Properties,14666B,379785
Gloucester City Council,23UE,Homelessness Prevention,CH122,Fees For Services Received,5350,REDACTED,28/02/2014,500,NET,The Property Centre,05777Z,379786
Gloucester City Council,23UE,Blackfriars,LA609,Electricity Supply,3110,A4071662 Blackfriars,03/02/2014,27.88,NET,British Gas,59061X,377772
Gloucester City Council,23UE,Shopmobility,PE200,Office Equipment <5000,5010,folding table,10/02/2014,103.38,NET,Core Hygiene Ltd,03885P,378593
Gloucester City Council,23UE,Cctv Revenue Budget,FP501,Security Equipment Serv/Repair,3038,Maintenance of CCTV 1/12/13 to 31/12/13,10/02/2014,1726.67,NET,Quadrant Security Group Ltd,05109A,378487
Gloucester City Council,23UE,Cemeteries,HC300,Trade Refuse Tipping Fees,6297,inert waste,10/02/2014,360,NET,Allstone Sand & Gravel Aggregates Ltd,00940M,378587
Gloucester City Council,23UE,Disabled Facilities Grants,CY013,Disabled Facility Grants,74,REDACTED,10/02/2014,28115.9,CAP,Snape Construction Ltd,40958T,378297
Gloucester City Council,23UE,Tourism Marketing,LT100,Security Services Fees,5351,CASH HANDLING,26/02/2014,88.16,NET,G4s Cash Solutions (Uk) Ltd,04290V,379553
Gloucester City Council,23UE,Blackfriars Catering,LA220,Catering Provisions -Liquor,5111,blackfriars Priory: larger & soft drinks,26/02/2014,114.52,NET,Cellar Supplies Cheltenham Ltd,01563L,379627
Gloucester City Council,23UE,Legal Services,RS200,Basic Pay -Admin /Prof Staff,2601,REDACTED,26/02/2014,649.08,NET,Sellick Partnership Group Ltd,11057C,379656
Gloucester City Council,23UE,Disabled Facilities Grants,CY013,Disabled Facility Grants,74,grant ref MDF5044,26/02/2014,3945,CAP,Dolphin Lifts (Western) Ltd,10661B,379682
Gloucester City Council,23UE,Off Street Car Parks,PP110,General Repair/Maint Buildings,3000,Westgate Street Car Park - fill pothole,27/02/2014,121.62,NET,Rf Gardiner Limited,12299B,379289
Gloucester City Council,23UE,REDACTED,REDACTED,REDACTED,REDACTED,REDACTED,26/02/2014,35,NET,REDACTED,REDACTED,REDACTED
Gloucester City Council,23UE,Client Revs & Bens Contract,RT240,Fees For Services Received,5350,arrest & detention defaulter Council Tax,26/02/2014,49.5,NET,Assevarate Ltd,11749A,379654
Gloucester City Council,23UE,Client Revs & Bens Contract,RT240,Bank Charges And Adjustments,5950,REDACTED,11/02/2014,6,NET,Hm Courts & Tribunals Service,12497V,378640
Gloucester City Council,23UE,City Museum And Art Gallery,LM200,Advertising And Publicity,5702,Folk Museum: 3 days stall Farmers Mkt,13/02/2014,96,NET,Grenchurch Markets Ltd,14398D,378732
Gloucester City Council,23UE,Herbert Reception Upgrade,RY201,Contract Payments,20,Temp reception Signs (batch2),13/02/2014,154,CAP,Squirty Ink,13834P,378237
Gloucester City Council,23UE,Website Rebuild,RY573,Consultants Fees,30,REDACTED,13/02/2014,1267,CAP,Patzone It Solutions Ltd,13059R,378812
Gloucester City Council,23UE,City Museum Catering,LM202,Catering Provisions -Food,5110,FOOD,13/02/2014,6.2,NET,Total Produce Gloucester,12645E,378815
Gloucester City Council,23UE,Folk Museum Catering,LM211,Hire Of Equipment,5020,HIRE JAN 2014,13/02/2014,135,NET,La Spaziale Uk Ltd,11823P,378837
Gloucester City Council,23UE,General Drainage Works,PY241,Contract Payments,20,dinglewell&Green LneFlooding Quesionnair,13/02/2014,600,CAP,Rab Consultants,13415R,378773
Gloucester City Council,23UE,Business Transformation & Tech,RT700,Computer Software Maintenance,5427,Year Software supprt Bulk Import,13/02/2014,809.23,NET,Northgate Information Solutions Uk Ltd,08982S,378539
Gloucester City Council,23UE,Business Transformation & Tech,RT700,Computer Software Maintenance,5427,Info@Work Embedded viewer,24/02/2014,1300,NET,Northgate Information Solutions Uk Ltd,08982S,378536
Gloucester City Council,23UE,Play Area Refurbishment,LY071,Contract Payments,20,GATE,03/03/2014,783.52,CAP,Medway Galvanising Co Ltd,03660T,378940
Gloucester City Council,23UE,Human Resources,EH100,Basic Pay -Admin /Prof Staff,2601,Mgment of Apprenticeship Scheme,19/02/2014,3250,NET,Hr Consulting Ltd,12559Y,378286
Gloucester City Council,23UE,City Museum Catering,LM202,Catering Provisions -Food,5110,Guildhall: milk,27/02/2014,4.96,NET,Total Produce Gloucester,12645E,379647
Gloucester City Council,23UE,Off Street Car Parks,PP110,General Repair/Maint Buildings,3000,Eastgat roof top car park: repair lights,27/02/2014,503.08,NET,Rf Gardiner Limited,12299B,379425
Gloucester City Council,23UE,Investment Property,RB500,General Repair/Maint Buildings,3000,Eastgate Market lights,27/02/2014,416.38,NET,Rf Gardiner Limited,12299B,379635
Gloucester City Council,23UE,Countryside Unit,LP201,Clothing,5200,"Regatta Chandler, Skytec Argon Themal",07/02/2014,21.65,NET,Countrywide Farmers*,55687J,378502
Gloucester City Council,23UE,Cctv Revenue Budget,FP501,Security Equipment Serv/Repair,3038,Maintain CCTV - Nov 2013,10/02/2014,1726.67,NET,Quadrant Security Group Ltd,05109A,378488
Gloucester City Council,23UE,Wake Room,HC501,Catering Provisions -Food,5110,FOOD,18/02/2014,10.81,NET,Total Produce Gloucester,12645E,378783
Gloucester City Council,23UE,General Drainage Works,PY241,Contract Payments,20,"Flood protect-1Church, Robinswood",13/02/2014,1545,CAP,Rj Contracting (Environmental) Ltd,07429H,378427
Gloucester City Council,23UE,Off Street Car Parks,PP110,General Repair/Maint Buildings,3000,SERVICE 11/10/13,13/02/2014,56.6,NET,Parkeon Ltd,03238G,374808
Gloucester City Council,23UE,Civica Admin Charges,RT105,Photocopying,5320,L9074200048,13/02/2014,264.28,NET,Ricoh Uk Ltd,07519F,378743
Gloucester City Council,23UE,Homelessness Prevention,CH122,Fees For Services Received,5350,REDACTED,13/02/2014,150,NET,REDACTED,REDACTED,REDACTED
Gloucester City Council,23UE,Investment Property,RB500,Lift Maintenance,3051,EASTGATE MARKET,14/02/2014,112.62,NET,Pickerings Europe Ltd*,58816U,378842
Gloucester City Council,23UE,Play Area Refurbishment,LY071,Contract Payments,20,Bins to Greenfield Gardens Services,20/02/2014,660,CAP,Wybone Limited,13540L,379269
Gloucester City Council,23UE,Homelessness,CH120,Fees For Services Received,5350,provision of medical notes,07/02/2014,20.5,NET,Gloucester Health Access Centre,11611H,378503
Gloucester City Council,23UE,Aspire Admin Charges,LC105,Contracted Services,6970,Monthly charge-Legal Agreement,14/02/2014,79792.5,NET,Aspire Sports & Cultural Trust,08135V,378527
Gloucester City Council,23UE,Docks Complex - Catering Servs,RB110,Catering Provisions -Food,5110,FOOD,14/02/2014,22.89,NET,Total Produce Gloucester,12645E,378979
Gloucester City Council,23UE,Docks Complex - Telephones,RB120,Telephones And Fax,5410,ACCT 511746301,19/02/2014,30,NET,Virgin Media Payments Ltd,09376J,378858
Gloucester City Council,23UE,Docks Complex - Telephones,RB120,Mobile Phones,5409,ACCT 683678256/00001,14/02/2014,25.53,NET,Vodafone Ltd,53527D,378863
Gloucester City Council,23UE,Docks Complex - Telephones,RB120,Telephones And Fax,5410,ACCT 504750303,19/02/2014,33,NET,Virgin Media Payments Ltd,09376J,378856
Gloucester City Council,23UE,Docks Complex - Catering Servs,RB110,Catering Provisions -Food,5110,FOOD,14/02/2014,22.55,NET,Total Produce Gloucester,12645E,378953
Gloucester City Council,23UE,Cemeteries,HC300,Bonus/Prp-Building Maint Staff,1302,POSTS,14/02/2014,16.8,NET,Millington & Ramstedt Ltd,29815S,378992
Gloucester City Council,23UE,Docks Complex - Catering Servs,RB110,Catering Provisions -Food,5110,FOOD,14/02/2014,16.64,NET,Total Produce Gloucester,12645E,378965
Gloucester City Council,23UE,Legal Services,RS200,Basic Pay -Admin /Prof Staff,2601,REDACTED,14/02/2014,668.52,NET,Sellick Partnership Group Ltd,11057C,378500
Gloucester City Council,23UE,REDACTED,REDACTED,REDACTED,REDACTED,REDACTED,14/02/2014,100,NET,REDACTED,REDACTED,REDACTED
Gloucester City Council,23UE,Development Management,PT200,Advertising And Publicity,5702,Adverts Crypt School,19/02/2014,92.96,NET,Local World Ltd,08556P,378057
Gloucester City Council,23UE,Economic Development,FP300,Other Minor Supplies Services,5590,EVENT JULY 2013,19/02/2014,716,NET,REDACTED,REDACTED,REDACTED
Gloucester City Council,23UE,Asset Management,RS300,Basic Pay - Temporary Staff,2751,REDACTED,06/02/2014,1293.6,NET,Hays Specialist Recruitment Ltd,55516P,376515
Gloucester City Council,23UE,Legal Services,RS200,Basic Pay -Admin /Prof Staff,2601,REDACTED,06/02/2014,487.29,NET,Premiere Employment Ltd,55468Z,377855
Gloucester City Council,23UE,Accelerator 1 Econ Challenge F,FP302,Other Minor Supplies Services,5590,business training & advice services,11/02/2014,220,NET,Gloucestershire Enterprise Ltd,18643A,378542
Gloucester City Council,23UE,General Works Fund,RY203,Capital Fire Alarms,25,Blackfriars Priory fire alarm works,25/02/2014,1344.34,CAP,A & E Fire Equipment Limited,54289L,377925
Gloucester City Council,23UE,REDACTED,REDACTED,REDACTED,REDACTED,REDACTED,11/02/2014,1002.58,NET,REDACTED,REDACTED,REDACTED
Gloucester City Council,23UE,Swrda Asset Transfer,RY184,Contract Payments,20,Albion Cottages enfranchisement query,14/02/2014,1500,CAP,Bevan Brittan,06630Y,378137
Gloucester City Council,23UE,Stationery Services,RS150,Stationery,5302,STATIONERY,17/02/2014,43.9,NET,Lyreco Uk Ltd,11746G,379086
Gloucester City Council,23UE,Hempsted Market/Car Boot,HM234,Sewerage And Environ Charges,3402,toilet hire,17/02/2014,475.8,NET,Abbey Loos Limited,10787B,379078
Gloucester City Council,23UE,Shopmobility,PE200,Cleaning Materials,3600,"SHOPMOBILITY-medical waste, sanitary",17/02/2014,6.67,NET,Ocs Group Uk Limited T/A Cannon,06506A,378293
Gloucester City Council,23UE,Flood Defence Grants To Househ,CY011,Other Capital Grants,89,Safe at Home Q2 Sept-Nov13,17/02/2014,4934,CAP,Gloucestershire County Council,18650D,378432
Gloucester City Council,23UE,Neighbourhood Partnerships,FP104,Fees For Services Received,5350,MATSON & ROBINSWOOD COMMUNITY,17/02/2014,2000,NET,Matson & Robinswood Community Partnership,05993R,378372
Gloucester City Council,23UE,Cemeteries,HC300,"Seeds, Trees, Plants, Shrubs",3028,Standard Red Rose tree,25/02/2014,29.99,NET,Highfield Garden Centres Ltd,48436C,379403
Gloucester City Council,23UE,Business Support,PT250,Routine R And M - Vehicles,4011,Skoda WE080UG wiper issues,25/02/2014,196.38,NET,Blade Motor Company,13671U,379540
Gloucester City Council,23UE,Blackfriars,LA609,Materials For Sale,5080,SALES FEB 2014,24/02/2014,135,NET,REDACTED,REDACTED,REDACTED
Gloucester City Council,23UE,Blackfriars,LA609,Sale Of Goods And Services,9230,SALES FEB 2014,24/02/2014,-14.38,NET,REDACTED,REDACTED,REDACTED
Gloucester City Council,23UE,Civil Parking Enforcement,PT741,Pcn Charges,9450,GO12041381,24/02/2014,35,NET,REDACTED,REDACTED,REDACTED
Gloucester City Council,23UE,Client Revs & Bens Contract,RT240,Bank Charges And Adjustments,5950,REDACTED,24/02/2014,6,NET,Hm Courts & Tribunals Service,12497V,379508
Gloucester City Council,23UE,Homelessness,CH120,Rent In Advance,5516,REDACTED,10/02/2014,364.6,NET,2 Let Glos Ltd,07066Y,378581
Gloucester City Council,23UE,Homelessness Prevention,CH122,Fees For Services Received,5350,REDACTED,10/02/2014,545,NET,Careme & Co,14427Y,378595
Gloucester City Council,23UE,Asbru - Other Funders,FP846,Other Minor Supplies Services,5590,REDACTED,11/02/2014,529.74,NET,Travail Employment Ltd,49371W,378357
Gloucester City Council,23UE,Cemeteries,HC300,Maint Of Grounds - General,3030,Crem: Old cemetery 1.50 T Top soil,11/02/2014,60,NET,Allstone Sand & Gravel Aggregates Ltd,00940M,378651
Gloucester City Council,23UE,Wake Room,HC501,Catering Provisions -Food,5110,Arbor: potatoes,11/02/2014,1.4,NET,Total Produce Gloucester,12645E,378669
Gloucester City Council,23UE,Business Transformation & Tech,RT700,Basic Pay - Temporary Staff,2751,CONTRACTOR SERVICES,25/02/2014,4225,NET,Vector Resourcing Ltd,11664K,379180
Gloucester City Council,23UE,Blackfriars Catering,LA220,Catering Provisions -Liquor,5111,"glos gold 9 gallons, dockside Dark case",05/02/2014,216,NET,Gloucester Brewery,13373F,378342
Gloucester City Council,23UE,Tic Trading,LT110,Materials For Sale,5080,Cards-Gloucester Cathedral,05/02/2014,21.25,NET,REDACTED,REDACTED,REDACTED
Gloucester City Council,23UE,Flooding And Drainage,HE306,Maint Of Grounds - General,3030,"Westend Tce, Alney Island, Remove trees",05/02/2014,720,NET,Rdb Safety Boat Ltd,13507J,378291
Gloucester City Council,23UE,Guildhall Bar And Cafe,LA210,Catering Provisions -Food,5110,"Sponge, flapjack etc",05/02/2014,23,NET,Taynton Farm Foods,09653F,378337
Gloucester City Council,23UE,Crematorium,HC200,Memorial Plaques,5053,Plaques,05/02/2014,573,NET,Arkell & Hurcombe,59812T,378339
Gloucester City Council,23UE,Gis Development Work,RY555,Contract Payments,20,REDACTED,20/02/2014,1250,CAP,Badenoch & Clark,01536P,379063
Gloucester City Council,23UE,Docks Complex - Catering Servs,RB110,Catering Provisions -Food,5110,FOOD,21/02/2014,0.6,NET,Total Produce Gloucester,12645E,379346
Gloucester City Council,23UE,General Works Fund,RY203,Capital Lighting Schemes,15,KINGS WALK BASTION,07/02/2014,198.8,CAP,Scs Installations Ltd,10383G,376565
Gloucester City Council,23UE,Homelessness,CH120,Board And Lodging,5515,various tenants,07/02/2014,1985.95,NET,James Legge Property (Ltd),07844R,378466
Gloucester City Council,23UE,City Museum Catering,LM202,Catering Provisions -Food,5110,Folk Museum: soft drinks,13/02/2014,76.45,NET,Cellar Supplies Cheltenham Ltd,01563L,378770
Gloucester City Council,23UE,Crematorium,HC200,Memorial Plaques,5053,"Crem: Bronze plaques, Brass stem",13/02/2014,258,NET,Arkell & Hurcombe,59812T,378767
Gloucester City Council,23UE,Civil Parking Enforcement,PT741,Pcn Charges,9450,PCN REFUND GO12043740,17/02/2014,50,NET,REDACTED,REDACTED,REDACTED
Gloucester City Council,23UE,Guildhall Bar And Cafe,LA210,Catering Provisions -Liquor,5111,"Suregas & suremix, BOC Ltd",04/02/2014,42.21,NET,Boc Ltd,59172L,378208
Gloucester City Council,23UE,Guildhall Bar And Cafe,LA210,Catering Provisions -Food,5110,food,05/02/2014,4.96,NET,Total Produce Gloucester,12645E,378363
Gloucester City Council,23UE,Guildhall Bar And Cafe,LA210,Catering Provisions -Food,5110,food,05/02/2014,4.96,NET,Total Produce Gloucester,12645E,378367
Gloucester City Council,23UE,Tic Coach Tickets,LT105,Sale Of Goods And Services,9230,SALES JAN 2014,18/02/2014,-4.25,NET,Wetm Ltd,05656Z,378854
Gloucester City Council,23UE,Investment Property,RB500,Lift Maintenance,3051,CITY MUSEUM,17/02/2014,577.6,NET,Pickerings Europe Ltd*,58816U,378843
Gloucester City Council,23UE,Cems/Crems Admin,HC100,Office Equipment <5000,5010,CARTRIDGES,17/02/2014,50.53,NET,Office Star Group Ltd,55874H,378949
Gloucester City Council,23UE,Countryside Unit,LP201,Vocational Training,2970,sit in atv training,17/02/2014,1100,NET,Royal Agricultural University,54398E,378942
Gloucester City Council,23UE,Cemeteries,HC300,Routine R And M - Vehicles,4011,Crem: Spark plug,21/02/2014,20.94,NET,Garden Machinery Gloucester,55641K,379408
Gloucester City Council,23UE,Printing,RP103,Fees For Services Received,5350,Museum panels,,140,NET,Alpha Colour Printers Ltd,00945B,378886
Gloucester City Council,23UE,Blackfriars,LA609,Electricity Supply,3110,acct A4071662 19 Ladybellegate St,03/02/2014,27.11,NET,British Gas,59061X,376330
Gloucester City Council,23UE,Homelessness,CH120,Rent In Advance,5516,REDACTED,05/02/2014,484.6,NET,All About Lettings,14435Z,378380
Gloucester City Council,23UE,Homelessness,CH120,Rent In Advance,5516,REDACTED,05/02/2014,484.6,NET,REDACTED,REDACTED,REDACTED
Gloucester City Council,23UE,Civica Admin Charges,RT105,Photocopying,5320,REDACTED,10/02/2014,264.28,NET,Ricoh Uk Ltd,07519F,376407
Gloucester City Council,23UE,Parks Contract Management,LP100,Maint Of Grounds - General,3030,replace coupling links Sebert Play area,06/02/2014,58.2,NET,Enterprise (Aol) Ltd,06695G,378025
Gloucester City Council,23UE,Parks Contract Management,LP100,Maint Of Grounds - General,3030,Repairs to wet pour Soren Larsen Way,06/02/2014,1630.11,NET,Enterprise (Aol) Ltd,06695G,378027
Gloucester City Council,23UE,Disabled Facilities Grants,CY013,Disabled Facility Grants,74,REDACTED,06/02/2014,4170,CAP,L Coward & Son Ltd,47989M,378246
Gloucester City Council,23UE,Development Management,PT200,Other Minor Supplies Services,5590,REDACTED,25/02/2014,65,NET,G P Aerials (1955) Ltd,18898M,379587
Gloucester City Council,23UE,Legal Services,RS200,Basic Pay - Temporary Staff,2751,REDACTED,26/02/2014,1446.26,NET,Venn Group Ltd,04339P,379096
Gloucester City Council,23UE,Business Grants,GY007,Contract Payments,20,Business accelerator grant,26/02/2014,750,CAP,Express Removals And Storage Ltd,14450D,379677
Gloucester City Council,23UE,Safer Stronger Communities,FP841,Other Minor Supplies Services,5590,To be spent on drawing up lease&cones,26/02/2014,810,NET,Gloucestershire Youth Mini Bike Project,14319C,379673
Gloucester City Council,23UE,Crematorium,HC200,Memorial Plaques,5053,tablet,26/02/2014,103.5,NET,The Columbaria Company,55078T,379640
Gloucester City Council,23UE,Docks Complex - Services,RB100,General Repair/Maint Buildings,3000,N Warehouse garage repair light,27/02/2014,135.42,NET,Rf Gardiner Limited,12299B,379633
Gloucester City Council,23UE,Investment Property,RB500,General Repair/Maint Buildings,3000,North Warehouse - repair lights,27/02/2014,144.34,NET,Rf Gardiner Limited,12299B,379439
Gloucester City Council,23UE,Street Trading Licences,HM520,Other Minor Supplies Services,5590,Kings Sq:feed pillar fault & circuit bk,27/02/2014,45.19,NET,Rf Gardiner Limited,12299B,379442
Gloucester City Council,23UE,Investment Property,RB500,General Repair/Maint Buildings,3000,"Herbert Wse: trace light fault, replace",27/02/2014,70.66,NET,Rf Gardiner Limited,12299B,379212
Gloucester City Council,23UE,Environmental Planning,LM340,Repair/Maint Of Monuments,3004,"Roman bastion:dehumid, electriclal items",13/02/2014,822.99,NET,Ermin Plant Hire & Services Ltd,14150V,378800
Gloucester City Council,23UE,City Museum Catering,LM202,Catering Provisions -Food,5110,FOOD,13/02/2014,4.96,NET,Total Produce Gloucester,12645E,378817
Gloucester City Council,23UE,General Drainage Works,PY241,Contract Payments,20,Sudbrook Flooding Questionnaire,13/02/2014,800,CAP,Rab Consultants,13415R,378772
Gloucester City Council,23UE,Countryside Unit,LP201,Vet Fees,5842,Robinswood Hill Fm:Collection & disposal,13/02/2014,100,NET,Gordon Gilder Livestock,02518G,378796
Gloucester City Council,23UE,Mortgage Rescue,CH128,Fees For Services Received,5350,REDACTED,13/02/2014,383.8,NET,One To One Recruitment,04752H,378798
Gloucester City Council,23UE,Business Transformation & Tech,RT700,Computer Software Maintenance,5427,Annual software support 103Rev&Bens extr,13/02/2014,3092.42,NET,Northgate Information Solutions Uk Ltd,08982S,378537
Gloucester City Council,23UE,Retail Market - Landlord,HM300,Cleaning Materials,3600,"Eastgate Mkt: handwash, airfresher",19/02/2014,48.68,NET,Yate Supplies,12850B,379267
Gloucester City Council,23UE,Client Revs & Bens Contract,RT240,Bailiffs Fees,5368,REDACTED,28/02/2014,42.5,NET,Bristow & Sutor,05450M,379195
Gloucester City Council,23UE,City Museum Catering,LM202,Catering Provisions -Food,5110,Guildhall:  milk,27/02/2014,4.96,NET,Total Produce Gloucester,12645E,379722
Gloucester City Council,23UE,Guildhall Bar And Cafe,LA210,Other Catering Provisions,5112,Guildhall catering: goods,27/02/2014,105,NET,Big Chief Catering Ltd,14417B,379727
Gloucester City Council,23UE,Dwelling Improvements,BY008,Contract Payments,20,Jan14 Capital & Jan 14Capital fee,27/02/2014,671349.8,CAP,Gloucester City Homes,05244T,379045
Gloucester City Council,23UE,Crematorium,HC200,Memorial Plaques,5053,plaque,27/02/2014,294,NET,Arkell & Hurcombe,59812T,379642
Gloucester City Council,23UE,City Museum Catering,LM202,Catering Provisions -Food,5110,food,27/02/2014,4.96,NET,Total Produce Gloucester,12645E,379644
Gloucester City Council,23UE,Off Street Car Parks,PP110,General Repair/Maint Buildings,3000,Spa Bowling Club lights repair,27/02/2014,656.61,NET,Rf Gardiner Limited,12299B,379671
Gloucester City Council,23UE,Ranger Centre/Netheridge Wks,RY167,Contract Payments,20,"Rangers Centre, robinswood hill",27/02/2014,1749.6,CAP,Dribuild,13474Y,379655
Gloucester City Council,23UE,Green Transport Policy,PJ130,Management Fees,6001,Removal:telematics units&car club graphi,27/02/2014,562.5,NET,Co-Wheels Cic,11534A,379670
Gloucester City Council,23UE,Blackfriars,LA609,Operational Equipment <5000,5012,Dimplex CXD200H Ceramic Heater,28/02/2014,534.91,NET,Edmundson Electrical Ltd*,13990Y,379284
Gloucester City Council,23UE,Asbru - Other Funders,FP846,Other Minor Supplies Services,5590,REDACTED,28/02/2014,443.04,NET,Travail Employment Ltd,49371W,379649
Gloucester City Council,23UE,REDACTED,REDACTED,REDACTED,REDACTED,REDACTED,10/02/2014,450,NET,REDACTED,REDACTED,REDACTED
Gloucester City Council,23UE,Off Street Car Parks,PP110,General Repair/Maint Buildings,3000,RE REPAIRS TO ST MICHAELS SQ DRAIN,10/02/2014,195,NET,Gloucestershire County Council,09413E,378597
Gloucester City Council,23UE,Crematorium,HC200,Memorial Plaques,5053,"Crem: Tree Plaques, stakes etc",18/02/2014,296,NET,Steel & Stone (York),57204U,379187
Gloucester City Council,23UE,Homelessness,CH120,Rent In Advance,5516,REDACTED,13/02/2014,280,NET,REDACTED,REDACTED,REDACTED
Gloucester City Council,23UE,City Museum And Art Gallery,LM200,Exhibits And Collections,5038,Print room sales Jan 2014 (VAT & noVAT),14/02/2014,140,NET,Alpha Colour Printers Ltd,00945B,378802
Gloucester City Council,23UE,Utilities,PT502,Electricity Supply,3110,REDACTED,,164.74,NET,Southern Electric,05714A,379228
Gloucester City Council,23UE,Business Transformation & Tech,RT700,Subscriptions,5600,scoitm membership: senr memb public sect,20/02/2014,140,NET,Socitm Service Ltd*,52552P,379336
Gloucester City Council,23UE,Civil Parking Enforcement,PT741,Computer Software Maintenance,5427,MiPermit cashless parking fees,04/02/2014,1283.09,NET,Chipside Ltd,06535T,378289
Gloucester City Council,23UE,Registration Of Electors,RS400,Fees For Services Received,5350,Storage of Polling Booths,07/02/2014,235,NET,Armstrong Removals,04632N,378333
Gloucester City Council,23UE,General Works Fund,RY203,Consultants Fees,30,REDACTED,07/02/2014,142.5,CAP,Find The Engineer Recruitment Ltd*,12977Z,378354
Gloucester City Council,23UE,Housing Works In Default,HD500,Clearance And Cleansing Fees,5384,Clear land Bybrook Grns erect fence,07/02/2014,1564,NET,Reach Gloucestershire Cic,12542S,378490
Gloucester City Council,23UE,Green Transport Policy,PJ130,Electric Car Charge,4030,Hire of electric car,07/02/2014,287.35,NET,Daimler Fleet Management,07828N,378485
Gloucester City Council,23UE,Financial Services,RT200,Computer Software Maintenance,5427,8 days consult for Fixed Asset Module,07/02/2014,1700,NET,Advanced Business Solutions,06072N,378436
Gloucester City Council,23UE,Tea Room,HC500,Catering Provisions -Food,5110,"Catering @ Arbor, 2/2/14",07/02/2014,173.46,NET,Janes Pantry,24500W,378347
Gloucester City Council,23UE,Tic Theatre Ticket Sales,LT107,Sale Of Goods And Services,9230,CASH ON DELIVERY TICKET SALES,07/02/2014,-28.33,NET,Kings Theatre,54213X,378508
Gloucester City Council,23UE,Legal Services,RS200,Basic Pay -Admin /Prof Staff,2601,REDACTED,12/02/2014,621.25,NET,Michael Page International Recruitment Ltd,06601P,378735
Gloucester City Council,23UE,Docks Complex - Services,RB100,Cleaning Materials,3600,Jumbo toilet rolts,10/02/2014,29.88,NET,Cleanmy Ltd,06971S,378334
Gloucester City Council,23UE,Museum Phase 2 Hlf,GY001,Contract Payments,20,"City Museum Consultation, 2nd stage",14/02/2014,925,CAP,Andrew Meredith T/A Meredith Associates,14203Z,378938
Gloucester City Council,23UE,Docks Complex - Catering Servs,RB110,Catering Provisions -Food,5110,FOOD,14/02/2014,47.1,NET,Total Produce Gloucester,12645E,378951
Gloucester City Council,23UE,Docks Complex - Catering Servs,RB110,Catering Provisions -Food,5110,FOOD,14/02/2014,15.84,NET,Total Produce Gloucester,12645E,378952
Gloucester City Council,23UE,Docks Complex - Catering Servs,RB110,Catering Provisions -Food,5110,FOOD,14/02/2014,15.7,NET,Total Produce Gloucester,12645E,378977
Gloucester City Council,23UE,Tea Room,HC500,Catering Provisions -Food,5110,"Arbor: baps, cakes, sandwich etc",14/02/2014,128.02,NET,Janes Pantry,24500W,378875
Gloucester City Council,23UE,Docks Complex - Catering Servs,RB110,Catering Provisions -Food,5110,FOOD,14/02/2014,14.3,NET,Total Produce Gloucester,12645E,378974
Gloucester City Council,23UE,Crematorium,HC200,Clothing,5200,Crem: 2 x Waterproof boots,14/02/2014,81.78,NET,Safpro Industrial Supply Co,39190W,378778
Gloucester City Council,23UE,Off Street Car Parks,PP110,Contracted Services,6970,Jan14-variable services,14/02/2014,12112.13,NET,Apcoa Parking (Uk) Ltd,09954M,378528
Gloucester City Council,23UE,Forest Of Dean Cpe,PT744,Contracted Services,6970,Jan14-variable services,14/02/2014,1790.13,NET,Apcoa Parking (Uk) Ltd,09954M,378528
Gloucester City Council,23UE,Guildhall Events,LA200,Fees For Services Received,5350,ADH & Grease remover,17/02/2014,15.75,NET,Directa Uk Ltd,05387T,379049
Gloucester City Council,23UE,REDACTED,REDACTED,REDACTED,REDACTED,REDACTED,17/02/2014,200,NET,REDACTED,REDACTED,REDACTED
Gloucester City Council,23UE,Legal Services,RS200,Basic Pay -Admin /Prof Staff,2601,REDACTED,06/02/2014,487.29,NET,Premiere Employment Ltd,55468Z,378251
Gloucester City Council,23UE,Asset Management,RS300,Basic Pay - Temporary Staff,2751,REDACTED,06/02/2014,1143.33,NET,Hays Specialist Recruitment Ltd,55516P,376516
Gloucester City Council,23UE,Retail Market - Landlord,HM300,Trade Refuse Collection,3630,"Bins Fat, Bone & Fish waste",07/02/2014,150,NET,B & S Pointon Ltd,06253G,378429
Gloucester City Council,23UE,REDACTED,REDACTED,REDACTED,REDACTED,REDACTED,25/02/2014,905,NET,REDACTED,REDACTED,REDACTED
Gloucester City Council,23UE,REDACTED,REDACTED,REDACTED,REDACTED,REDACTED,25/02/2014,20,NET,REDACTED,REDACTED,REDACTED
Gloucester City Council,23UE,Gis Development Work,RY555,Contract Payments,20,REDACTED,25/02/2014,1250,CAP,Badenoch & Clark,01536P,379537
Gloucester City Council,23UE,Folk Museum,LM210,Advertising And Publicity,5702,Explore Gloucestershire Xmas Guide 2013,17/02/2014,300,NET,Cds Publications,59644P,379067
Gloucester City Council,23UE,Crematorium,HC200,Memorial Plaques,5053,bronze plaque,17/02/2014,162,NET,Arkell & Hurcombe,59812T,379074
Gloucester City Council,23UE,Corporate Expenses,RC110,Subscriptions,5600,"Membership, District council network",21/02/2014,200,NET,District Councils Network,11624Y,379424
Gloucester City Council,23UE,Guildhall Events,LA200,Advertising And Publicity,5702,Guildhall: glos Jumbo matchtime 2014/5,25/02/2014,1995,NET,Elonex Sport,12045M,378933
Gloucester City Council,23UE,Blackfriars,LA609,Materials For Sale,5080,SALES FEB 2014,24/02/2014,60,NET,REDACTED,REDACTED,REDACTED
Gloucester City Council,23UE,Senior Management Restructurin,RO200,Pension Contribs Incl Backf,2901,REDACTED,04/02/2014,7599.09,NET,Gloucestershire County Council,10614L,377682
Gloucester City Council,23UE,Cleansing Services Admin,HI100,Maint Of Paths/Hardstandings,3056,Yucca cottage works,04/02/2014,1200,NET,Abbey Surfacing,03487G,377265
Gloucester City Council,23UE,Off Street Car Parks,PP110,General Repair/Maint Buildings,3000,grit for car parks,04/02/2014,205,NET,Ken Pink Plant Hire Ltd,56884V,377763
Gloucester City Council,23UE,Homelessness,CH120,Rent In Advance,5516,REDACTED,10/02/2014,438.16,NET,REDACTED,REDACTED,REDACTED
Gloucester City Council,23UE,Wake Room,HC501,Catering Provisions -Food,5110,"Crem: Bred, meat, Salad items",11/02/2014,34.5,NET,Total Produce Gloucester,12645E,378656
Gloucester City Council,23UE,Wake Room,HC501,Catering Provisions -Liquor,5111,Arbor: Alcohol & soft drinks,11/02/2014,200.85,NET,Cellar Supplies Cheltenham Ltd,01563L,378652
Gloucester City Council,23UE,Wake Room,HC501,Catering Provisions -Food,5110,"Arbor: Milk, Salad",11/02/2014,14.3,NET,Total Produce Gloucester,12645E,378659
Gloucester City Council,23UE,Stationery Services,RS150,Stationery,5302,STATIONERY,18/02/2014,131.43,NET,Lyreco Uk Ltd,11746G,379082
Gloucester City Council,23UE,Parks Contract Management,LP100,Maint Of Grounds - General,3030,GLEVUM WAY,18/02/2014,257.8,NET,Enterprise (Aol) Ltd,06695G,378836
Gloucester City Council,23UE,Countryside Unit,LP201,Maint Of Grounds - General,3030,countryside unit: felling of trees,25/02/2014,831.25,NET,Jpu Services Ltd,11056K,379510
Gloucester City Council,23UE,Tree Planting Grant Funded,LY150,Contract Payments,20,Lannett Tree planting,25/02/2014,1316,CAP,Greenfields Garden Services Ltd,48130G,379061
Gloucester City Council,23UE,Cedar Upgrade 2011/12,RY250,Contract Payments,20,expenses,27/02/2014,247.19,CAP,Advanced Business Solutions,06072N,379279
Gloucester City Council,23UE,Cemeteries,HC300,Maint Of Grounds - General,3030,Hose & Spigot adaptor Glos Crem,05/02/2014,30.13,NET,Pump Supplies Ltd,55668N,378340
Gloucester City Council,23UE,REDACTED,REDACTED,REDACTED,REDACTED,REDACTED,05/02/2014,200,NET,REDACTED,REDACTED,REDACTED
Gloucester City Council,23UE,Hempsted Market/Car Boot,HM234,Hire Of Equipment,5020,HIRE JAN 14,05/02/2014,254.19,NET,Portable Offices (Hire ) Ltd*,06286R,377056
Gloucester City Council,23UE,Registration Of Electors,RS400,Publications,5060,schofield's Election Law,05/02/2014,145,NET,Thomson Reuters,43110M,378332
Gloucester City Council,23UE,Nms Contract,HI102,Contracted Services,6970,"Emergency tree works, Lilac Way, Quedgel",19/02/2014,800,NET,Greenfields Garden Services Ltd,48130G,378787
Gloucester City Council,23UE,Hackney Carriages,HL100,Other Minor Supplies Services,5590,adverts,20/02/2014,525.89,NET,Local World Ltd,08556P,378056
Gloucester City Council,23UE,Business Transformation & Tech,RT700,Computer Software Maintenance,5427,WhoseOn Hosted Serv Feb14-Mar14,20/02/2014,30,NET,Parker Software,14223T,379278
Gloucester City Council,23UE,Folk Museum,LM210,Publications For Sale,5064,shop goods,20/02/2014,287.38,NET,Half Moon Bay Ltd,08240F,377826
Gloucester City Council,23UE,Civica Admin Charges,RT105,Postages,5400,ACCT 0870585007 REVENUES,21/02/2014,1422.41,NET,Royal Mail S.Wales & South West,35830S,379095
Gloucester City Council,23UE,Parks Contract Management,LP100,Maint Of Grounds - General,3030,LONGLEVENS PLAY AREA,07/02/2014,33.48,NET,Enterprise (Aol) Ltd,06695G,376926
Gloucester City Council,23UE,Homelessness,CH120,Board And Lodging,5515,various tenants,07/02/2014,997.34,NET,Kalmwood Ltd,08568G,378465
Gloucester City Council,23UE,Homelessness,CH120,Rent In Advance,5516,REDACTED,12/02/2014,309.23,NET,REDACTED,REDACTED,REDACTED
Gloucester City Council,23UE,City Museum And Art Gallery,LM200,Uniforms,5201,purple poloshirts,17/02/2014,54.95,NET,Alexandra,50586R,374252
Gloucester City Council,23UE,Business Transformation & Tech,RT700,Computer Network Maintenance,5443,"Licence renewal xStorm,iStorm,StormProbe",03/02/2014,7368,NET,Randomstorm,09070N,378235
Gloucester City Council,23UE,Docks Complex - Services,RB100,General Repair/Maint Buildings,3000,cleaning 2 staircases,03/02/2014,1700,NET,Hayward Cleaning Services Ltd,14393P,378240
Gloucester City Council,23UE,REDACTED,REDACTED,REDACTED,REDACTED,REDACTED,03/02/2014,650,NET,REDACTED,REDACTED,REDACTED
Gloucester City Council,23UE,Director Resources,MR102,Fees For Services Received,5350,REDACTED,04/02/2014,1222.5,NET,Wragge & Co Llp,06590J,378300
Gloucester City Council,23UE,Contact Centre,RB300,Basic Pay -Admin /Prof Staff,2601,REDACTED,04/02/2014,382.8,NET,One To One Recruitment,04752H,378130
Gloucester City Council,23UE,Off Street Car Parks,PP110,General Repair/Maint Buildings,3000,SERVICE 14/10/13,06/02/2014,163.5,NET,Parkeon Ltd,03238G,374807
Gloucester City Council,23UE,REDACTED,REDACTED,REDACTED,REDACTED,REDACTED,12/02/2014,150,NET,REDACTED,REDACTED,REDACTED
Gloucester City Council,23UE,Hackney Carriages,HL100,Fees For Services Received,5350,DVLA electronic check,19/02/2014,50.75,NET,Intelligent Data Systems (Uk) Ltd,11067G,378645
Gloucester City Council,23UE,General Works Fund,RY203,Contract Payments,20,EASTGATE ROOFTOP CAR PARK WORKS,,3849.89,CAP,Rsw Roofing Ltd,11063G,378492
Gloucester City Council,23UE,Wake Room,HC501,Catering Provisions -Food,5110,Arbor: Cheesecake,21/02/2014,14.99,NET,3663,55585U,379428
Gloucester City Council,23UE,Wake Room,HC501,Catering Provisions -Food,5110,Arbor: various foods,21/02/2014,247.26,NET,3663,55585U,379429
Gloucester City Council,23UE,Electrical Investigatory Works,RY142,Contract Payments,20,Call out-Install electrical supply,21/02/2014,126.54,CAP,A & E Fire Equipment Limited,54289L,378261
Gloucester City Council,23UE,Crematorium,HC200,Memorial Plaques,5053,transport of own lorry,10/02/2014,150,NET,Allstone Sand & Gravel Aggregates Ltd,00940M,378588
Gloucester City Council,23UE,Crematorium,HC200,Repair/Maint Of Fixed Plant,3006,Crem: Remove Barrels of Reagent waste,06/02/2014,1472.04,NET,Facultatieve Technologies Ltd,51210H,378301
Gloucester City Council,23UE,Gloucester Guildhall,LA100,General Repair/Maint Buildings,3000,Supply&fit glass to guildhall entrance,06/02/2014,139.3,NET,Roman Glass Ltd*,54322R,378129
Gloucester City Council,23UE,Investment Property,RB500,General Repair/Maint Buildings,3000,"Barbican House, pipework & boilers",06/02/2014,405.17,NET,Rf Gardiner Limited,12299B,378287
Gloucester City Council,23UE,Client Revs & Bens Contract,RT240,Court Fees,5358,REDACTED,06/02/2014,150,NET,Hmcts,05407N,378437
Gloucester City Council,23UE,Homelessness Prevention,CH122,Fees For Services Received,5350,REDACTED,03/03/2014,150,NET,REDACTED,REDACTED,REDACTED
Gloucester City Council,23UE,Business Support,PT250,Fuel,4012,vehicle fuel,25/02/2014,251.21,NET,Allstar Business Solutions Ltd (Arval),06594A,379047
Gloucester City Council,23UE,Cems/Crems Admin,HC100,Security Services Fees,5351,amends to contract 3338600,26/02/2014,11.85,NET,G4s Cash Solutions (Uk) Ltd,04290V,379551
Gloucester City Council,23UE,Client Revs & Bens Contract,RT240,Security Services Fees,5351,CASH HANDLING,26/02/2014,3.3,NET,G4s Cash Solutions (Uk) Ltd,04290V,379543
Gloucester City Council,23UE,Cems/Crems Admin,HC100,Security Services Fees,5351,CASH HANDLING,26/02/2014,19.8,NET,G4s Cash Solutions (Uk) Ltd,04290V,379543
Gloucester City Council,23UE,Aspire Admin Charges,LC105,Security Services Fees,5351,CASH HANDLING,26/02/2014,264.51,NET,G4s Cash Solutions (Uk) Ltd,04290V,379553
Gloucester City Council,23UE,Docks Complex - Telephones,RB120,Telephones And Fax,5410,VIRGIN MEDIA15/2/2014,26/02/2014,189.43,NET,Virgin Media Business,01869B,379412
Gloucester City Council,23UE,Blackfriars Catering,LA220,Catering Provisions -Liquor,5111,Blackfriars: alcohol,26/02/2014,323.78,NET,Cellar Supplies Cheltenham Ltd,01563L,379628
Gloucester City Council,23UE,Inhouse Training,EH200,Vocational Training,2970,FAW course 24-27 Feb 14,26/02/2014,720,NET,Aspire Sports & Cultural Trust,08135V,379055
Gloucester City Council,23UE,Legal Services,RS200,Basic Pay - Temporary Staff,2751,REDACTED,26/02/2014,1449.29,NET,Venn Group Ltd,04339P,378207
Gloucester City Council,23UE,Legal Services,RS200,Basic Pay - Temporary Staff,2751,REDACTED,26/02/2014,1411.4,NET,Venn Group Ltd,04339P,378594
Gloucester City Council,23UE,Herbert Reception Upgrade,RY201,Contract Payments,20,GuildhaLl: rewire front lighting as quote,27/02/2014,757.39,CAP,Rf Gardiner Limited,12299B,379438
Gloucester City Council,23UE,Bus Station,RB400,General Repair/Maint Buildings,3000,Bus station: unblock downpipe,27/02/2014,126.77,NET,Rf Gardiner Limited,12299B,379198
Gloucester City Council,23UE,General Works Fund,RY203,Capital Lighting Schemes,15,Crem: repair lighting,27/02/2014,132.79,CAP,Rf Gardiner Limited,12299B,379288
Gloucester City Council,23UE,General Works Fund,RY203,Capital General Repairs & Main,13,Bearland Lodge -power for building works,27/02/2014,64,CAP,Rf Gardiner Limited,12299B,379189
Gloucester City Council,23UE,Financial Services,RT200,Consultants Fees,5349,REDACTED,13/02/2014,2175,NET,Robert Half Ltd,03959K,378257
Gloucester City Council,23UE,Guildhall Events,LA200,Advertising And Publicity,5702,NEWSPAPERS,13/02/2014,23.6,NET,W H Smith Ltd,40860M,378814
Gloucester City Council,23UE,Wake Room,HC501,Catering Provisions -Food,5110,"arbor: meat,salad, herbs",13/02/2014,29.25,NET,Total Produce Gloucester,12645E,378668
Gloucester City Council,23UE,Wake Room,HC501,Catering Provisions -Food,5110,"Arbor: milk, bread, mushroom",13/02/2014,10.81,NET,Total Produce Gloucester,12645E,378661
Gloucester City Council,23UE,Food Safety,HE100,Fees For Services Received,5350,Environ Health: Laundry,13/02/2014,13,NET,Iron Maidens,02180Y,378807
Gloucester City Council,23UE,Tic Coach Tickets,LT105,Materials For Sale,5080,TIC: Ticket sales for January 2014,21/02/2014,2296,NET,Marchants Coaches Ltd,48151Y,379287
Gloucester City Council,23UE,Tic Rovercard Sales,LT101,Sale Of Goods And Services,9230,SALES PERIOD 10,21/02/2014,-506.04,NET,Stagecoach Services Ltd*,56554W,379348
Gloucester City Council,23UE,Civil Parking Enforcement,PT741,Computer Software Maintenance,5427,DVLA enquiry service.,24/02/2014,80.9,NET,Chipside Ltd,06535T,378878
Gloucester City Council,23UE,Wake Room,HC501,Catering Provisions -Liquor,5111,"Arbor: Gords, Harveys, Rum",19/02/2014,50.47,NET,Cellar Supplies Cheltenham Ltd,01563L,379276
Gloucester City Council,23UE,Civica Admin Charges,RT105,Fees For Services Received,5350,CHD subscription advance,19/02/2014,4,NET,Companies House,58954E,376949
Gloucester City Council,23UE,Tic Coach Tickets,LT105,Sale Of Goods And Services,9230,REDACTED,24/02/2014,-3.96,NET,Superbreak Mini Holidays,00712D,378927
Gloucester City Council,23UE,Tea Room,HC500,Catering Provisions -Food,5110,"Arbor: cakes, sandwiches etc w/e 16/2",27/02/2014,113.25,NET,Janes Pantry,24500W,379359
Gloucester City Council,23UE,City Museum Catering,LM202,Catering Provisions -Food,5110,Guildhall: milk,27/02/2014,4.96,NET,Total Produce Gloucester,12645E,379721
Gloucester City Council,23UE,Homelessness Prevention,CH122,Grants To Voluntary Orgs-Rents,7100,Qtly fee for Homeless Emergency bed,27/02/2014,2379,NET,P3 (People Potential Possibilities),13809N,379737
Gloucester City Council,23UE,Financial Services,RT200,Consultants Fees,5349,REDACTED,27/02/2014,3975,NET,Robert Half Ltd,03959K,378774
Gloucester City Council,23UE,City Museum Catering,LM202,Catering Provisions -Food,5110,food,27/02/2014,6.2,NET,Total Produce Gloucester,12645E,379643
Gloucester City Council,23UE,Westgate Leisure Area S106,LY155,Contract Payments,20,lamination,27/02/2014,18,CAP,Km Reprographics,56040K,377246
Gloucester City Council,23UE,Kings Sq Paving Emerg Works,RY161,Contract Payments,20,Kings Sq: Remedial work per inspection,27/02/2014,601.37,CAP,Rf Gardiner Limited,12299B,379434
Gloucester City Council,23UE,Kings Sq Paving Emerg Works,RY161,Contract Payments,20,Kings Squ: repair lights to canope,27/02/2014,221.73,CAP,Rf Gardiner Limited,12299B,379433
Gloucester City Council,23UE,Disabled Facilities Grants,CY013,Disabled Facility Grants,74,REDACTED,27/02/2014,10366.79,CAP,Davey'S Building Maintenance,57010K,379650
Gloucester City Council,23UE,Guildhall Bar And Cafe,LA210,Catering Provisions -Food,5110,Guildhall - milk,18/02/2014,4.96,NET,Total Produce Gloucester,12645E,379209
Gloucester City Council,23UE,REDACTED,REDACTED,REDACTED,REDACTED,REDACTED,18/02/2014,113.66,NET,REDACTED,REDACTED,REDACTED
Gloucester City Council,23UE,Cemeteries,HC300,Trade Refuse Tipping Fees,6297,Weekly hire of dumper 1/1/14 to 31/1/14,18/02/2014,475,NET,Allstone Sand & Gravel Aggregates Ltd,00940M,379186
Gloucester City Council,23UE,REDACTED,REDACTED,REDACTED,REDACTED,REDACTED,18/02/2014,470,NET,REDACTED,REDACTED,REDACTED
Gloucester City Council,23UE,Guildhall Events,LA200,Advertising And Publicity,5702,ADVERTS JAN 2014,14/02/2014,531.3,NET,Local World Ltd,08556P,378828
Gloucester City Council,23UE,REDACTED,REDACTED,REDACTED,REDACTED,REDACTED,18/02/2014,451.43,NET,REDACTED,REDACTED,REDACTED
Gloucester City Council,23UE,Utilities,PT502,Electricity Supply,3110,REDACTED,,65.14,NET,Southern Electric,05714A,379230
Gloucester City Council,23UE,Tic Coach Tickets,LT105,Sale Of Goods And Services,9230,NATIONAL EXPRESS LTD 31/1/2014,06/02/2014,-960.88,NET,National Express Ltd,31455K,378391
Gloucester City Council,23UE,Nms Contract,HI102,Contracted Services,6970,BINS,06/02/2014,5103,NET,Enterprise (Aol) Ltd,06695G,378037
Gloucester City Council,23UE,Asset Management,RS300,Basic Pay - Temporary Staff,2751,Consultancy serv to Asset Mgt,07/02/2014,5800,NET,Ardley Associates,09369F,378498
Gloucester City Council,23UE,Gloucester Partnership,FP106,Fees For Services Received,5350,GL COMMUNITIES grant,05/02/2014,1486.51,NET,Gl Communities,09535X,378386
Gloucester City Council,23UE,Guildhall Bar And Cafe,LA210,Hire Of Equipment,5020,FEA AUDITS,14/02/2014,175,NET,Fea Audits,08888J,378932
Gloucester City Council,23UE,Docks Complex - Catering Servs,RB110,Catering Provisions -Food,5110,FOOD,14/02/2014,8.16,NET,Total Produce Gloucester,12645E,378984
Gloucester City Council,23UE,Docks Complex - Catering Servs,RB110,Catering Provisions -Food,5110,FOOD,14/02/2014,38.34,NET,Taynton Farm Foods,09653F,378986
Gloucester City Council,23UE,Docks Complex - Catering Servs,RB110,Catering Provisions -Food,5110,FOOD,14/02/2014,59.66,NET,Total Produce Gloucester,12645E,378970
Gloucester City Council,23UE,Docks Complex - Telephones,RB120,Telephones And Fax,5410,ACCT 513231401,19/02/2014,39,NET,Virgin Media Payments Ltd,09376J,378855
Gloucester City Council,23UE,Cemeteries,HC300,Fertilisers,3029,POSTS,14/02/2014,4.1,NET,Millington & Ramstedt Ltd,29815S,378992
Gloucester City Council,23UE,Docks Complex - Catering Servs,RB110,Catering Provisions -Food,5110,FOOD,14/02/2014,9.91,NET,3663,55585U,378997
Gloucester City Council,23UE,Docks Complex - Catering Servs,RB110,Catering Provisions -Food,5110,FOOD,14/02/2014,45.57,NET,Total Produce Gloucester,12645E,378959
Gloucester City Council,23UE,Docks Complex - Catering Servs,RB110,Catering Provisions -Food,5110,FOOD,14/02/2014,15.76,NET,Total Produce Gloucester,12645E,378960
Gloucester City Council,23UE,Docks Complex - Catering Servs,RB110,Catering Provisions -Food,5110,FOOD,14/02/2014,81.18,NET,Total Produce Gloucester,12645E,378961
Gloucester City Council,23UE,Docks Complex - Catering Servs,RB110,Catering Provisions -Food,5110,FOOD,14/02/2014,33.15,NET,Total Produce Gloucester,12645E,378967
Gloucester City Council,23UE,Docks Complex - Castlemeads Cp,RB210,Contracted Services,6970,Jan14-variable services,14/02/2014,4079.16,NET,Apcoa Parking (Uk) Ltd,09954M,378528
Gloucester City Council,23UE,Waterwells Park And Ride,PJ120,Contracted Services,6970,Jan14-variable services,14/02/2014,434.56,NET,Apcoa Parking (Uk) Ltd,09954M,378528
Gloucester City Council,23UE,REDACTED,REDACTED,REDACTED,REDACTED,REDACTED,10/02/2014,100,NET,REDACTED,REDACTED,REDACTED
Gloucester City Council,23UE,REDACTED,REDACTED,REDACTED,REDACTED,REDACTED,10/02/2014,750,NET,REDACTED,REDACTED,REDACTED
Gloucester City Council,23UE,REDACTED,REDACTED,REDACTED,REDACTED,REDACTED,10/02/2014,120,NET,REDACTED,REDACTED,REDACTED
Gloucester City Council,23UE,REDACTED,REDACTED,REDACTED,REDACTED,REDACTED,10/02/2014,299.33,NET,REDACTED,REDACTED,REDACTED
Gloucester City Council,23UE,Retail Market - Landlord,HM300,Window Cleaning,3610,Jan14 markets window cleaning,11/02/2014,140,NET,Cornwall Cleaning Services,14050A,377773
Gloucester City Council,23UE,Contact Centre,RB300,Basic Pay - Temporary Staff,2751,REDACTED,25/02/2014,440.8,NET,One To One Recruitment,04752H,379366
Gloucester City Council,23UE,City Museum Catering,LM202,Catering Provisions -Food,5110,FOOD,14/02/2014,128.35,NET,Woodward Foodservice,10714F,378859
Gloucester City Council,23UE,Rehousing,CH111,Fees For Services Received,5350,medical report,17/02/2014,20.5,NET,Gloucester City Health Centre,02093U,379064
Gloucester City Council,23UE,Depot,PY109,Cap Repair/Maint Fixed Plant,14,Caddy liners,17/02/2014,261.05,CAP,Peter Ridley Waste Systems,14403N,379044
Gloucester City Council,23UE,Docks Complex - Catering Servs,RB110,Catering Provisions -Food,5110,food,17/02/2014,23.3,NET,J & M Provisions Ltd,04292R,379072
Gloucester City Council,23UE,City Museum And Art Gallery,LM200,Security Services Fees,5351,City Museum alarm call out 18/1/14,17/02/2014,31,NET,Glevum Security Ltd,03249B,379073
Gloucester City Council,23UE,Cemeteries,HC300,Purch Vehicles/M. Plant <5000,4000,pressure washer,17/02/2014,314.44,NET,Garden Machinery Gloucester,55641K,379080
Gloucester City Council,23UE,Homelessness,CH120,Fees For Services Received,5350,Medical report,21/02/2014,20.5,NET,London Road Medical Practice,03814P,379420
Gloucester City Council,23UE,Investment Property,RB500,Consultants Fees,5349,"Painswick Rd, Glos-Ecological Surv&Asses",25/02/2014,245,NET,Gloucestershire Wildlife Trust,49628F,379277
Gloucester City Council,23UE,Contact Centre,RB300,Basic Pay -Admin /Prof Staff,2601,REDACTED,25/02/2014,724.13,NET,One To One Recruitment,04752H,379368
Gloucester City Council,23UE,Off Street Car Parks,PP110,General Repair/Maint Buildings,3000,Westage & St Michael's Squ,07/02/2014,480,NET,Cotswold Drain Services,04496W,378201
Gloucester City Council,23UE,Blackfriars,LA609,Sale Of Goods And Services,9230,SALES FEB 2014,24/02/2014,-7.5,NET,REDACTED,REDACTED,REDACTED
Gloucester City Council,23UE,Civil Parking Enforcement,PT741,Pcn Charges,9450,GO12044663,,105,NET,REDACTED,REDACTED,REDACTED
Gloucester City Council,23UE,Kings Quarter,RY146,Legal/Survey Fees -Land,2,"demolition of Golden Egg, Kings Walk",,36044.9,CAP,Wye Valley Demolition Ltd,07242C,379373
Gloucester City Council,23UE,Homelessness Prevention,CH122,Fees For Services Received,5350,REDACTED,10/02/2014,425,NET,2 Let Glos Ltd,07066Y,378581
Gloucester City Council,23UE,Homelessness,CH120,Rent In Advance,5516,REDACTED,10/02/2014,239.28,NET,Careme & Co,14427Y,378595
Gloucester City Council,23UE,Legal Services,RS200,Basic Pay -Admin /Prof Staff,2601,REDACTED,11/02/2014,857.5,NET,Michael Page International Recruitment Ltd,06601P,378676
Gloucester City Council,23UE,Wake Room,HC501,Catering Provisions -Food,5110,"Arbor: milk, bread, salad",11/02/2014,35.57,NET,Total Produce Gloucester,12645E,378663
Gloucester City Council,23UE,Wake Room,HC501,Catering Provisions -Food,5110,"ARBOR: Bread, veg, salad",11/02/2014,30.35,NET,Total Produce Gloucester,12645E,378665
Gloucester City Council,23UE,Countryside Unit,LP201,Maint Of Grounds - General,3030,SEATING,18/02/2014,94,NET,Streetmaster Products,00534D,379222
Gloucester City Council,23UE,Council Streetcare Team,HI101,Advertising And Publicity,5702,"Citizen,Echo, this Glos 13/2/2014",27/02/2014,232.4,NET,Local World Ltd,08556P,379360
Gloucester City Council,23UE,Car Parks,GY002,Contract Payments,20,Westgate St car park signs,27/02/2014,1300,CAP,Hanman Split Ltd,56889J,379634
Gloucester City Council,23UE,Guildhall Bar And Cafe,LA210,Hire Of Equipment,5020,"Cups, tumblers & diswasher liquid",05/02/2014,192,NET,Gerry Dance Disposables Ltd,54579Y,378343
Gloucester City Council,23UE,Docks Complex - Telephones,RB120,Mobile Phones,5409,PAYM Samsung Galaxy S3 Mini Titanium,05/02/2014,153,NET,Everything Everywhere Ltd (T-Mobile),02334V,378288
Gloucester City Council,23UE,Crematorium,HC200,Memorial Plaques,5053,Plaques,05/02/2014,160,NET,Arkell & Hurcombe,59812T,378338
Gloucester City Council,23UE,Cemeteries,HC300,Repair/Maint Of Monuments,3004,RC 28/35 + Fibres & waiting time,05/02/2014,408.03,NET,Easy Mix Ltd,01403L,378255
Gloucester City Council,23UE,Organisational Health,RC160,Fees For Services Received,5350,OH services For Nov 2013,20/02/2014,292.08,NET,Industrial Medical & Safety Services Ltd,10668L,377738
Gloucester City Council,23UE,Dog Warden,HE400,Fees For Services Received,5350,STRAY DOGS,07/02/2014,468.02,NET,Enterprise (Aol) Ltd,06695G,376929
Gloucester City Council,23UE,Crematorium,HC200,Memorial Plaques,5053,"Crem: Bronze cast plaque, Brass stem",13/02/2014,471,NET,Arkell & Hurcombe,59812T,378766
Gloucester City Council,23UE,Cemeteries,HC300,Routine R And M - Vehicles,4011,WX09 ADZ SERVICE,17/02/2014,505.32,NET,T H White Ltd,08413P,379085
Gloucester City Council,23UE,Tourism Marketing,LT100,Printing,5300,Gloucester counter bags & carriage,04/02/2014,335,NET,Fleet Promotional Packaging,04259N,378260
Gloucester City Council,23UE,Postal Services,RS120,Postages,5400,10/1/2014 to 23/1/2014,04/02/2014,1876.04,NET,Royal Mail S.Wales & South West,35830S,378127
Gloucester City Council,23UE,Dclg High St Renewal Fund,FP308,Other Minor Supplies Services,5590,ADVERT JAN 2014,17/02/2014,380,NET,Travel Gbi,14284W,377497
Gloucester City Council,23UE,Investment Property,RB500,Lift Maintenance,3051,CITY MUSEUM,17/02/2014,56.33,NET,Pickerings Europe Ltd*,58816U,378850
Gloucester City Council,23UE,Cleansing Services Admin,HI100,Maint Of Grounds - General,3030,PLAQUES,17/02/2014,1700,NET,Mcallister  Masonry,28900K,378826
Gloucester City Council,23UE,Tree Planting Grant Funded,LY150,Contract Payments,20,PLANTING,17/02/2014,550,CAP,Enterprise (Aol) Ltd,06695G,378834
Gloucester City Council,23UE,Business Transformation & Tech,RT700,Computer Software Maintenance,5427,Hosting of various Pro prefixed software,21/02/2014,2343,NET,Due North Ltd,12447L,379409
Gloucester City Council,23UE,Financial Services,RT200,Basic Pay - Temporary Staff,2751,REDACTED,21/02/2014,564.77,NET,Robert Half Ltd,03959K,378775
Gloucester City Council,23UE,Countryside Unit,LP201,General Repair/Maint Buildings,3000,Robinswood Hill Country Park: goods,27/02/2014,2754,NET,Greentek Solutions Ltd,13702J,379637
Gloucester City Council,23UE,Countryside Unit,LP201,Operational Equipment <5000,5012,Robinswood Hill Country Park: goods,27/02/2014,370,NET,Greentek Solutions Ltd,13702J,379637
Gloucester City Council,23UE,Printing,RP103,Fees For Services Received,5350,Print room Sales Jan 2014,,1287.67,NET,Alpha Colour Printers Ltd,00945B,378483
Gloucester City Council,23UE,Nms Contract,HI102,Contracted Services,6970,RECYCLING LIDS,03/02/2014,1350,NET,Enterprise (Aol) Ltd,06695G,378036
Gloucester City Council,23UE,Blackfriars,LA609,Electricity Supply,3110,blackfriars electric a/c A4071662,03/02/2014,27.88,NET,British Gas,59061X,374734
Gloucester City Council,23UE,Homelessness Prevention,CH122,Fees For Services Received,5350,REDACTED,05/02/2014,550,NET,All About Lettings,14435Z,378380
Gloucester City Council,23UE,Homelessness Prevention,CH122,Fees For Services Received,5350,REDACTED,05/02/2014,500,NET,REDACTED,REDACTED,REDACTED
Gloucester City Council,23UE,Grants To Voluntary Sector,FG100,Funding Vol&Com Grps-Sla'S,7100B,COMMUNITY GRANT 2013/14 4 OF 4,05/02/2014,25755,NET,Gloucester Law Centre,18157R,378209
Gloucester City Council,23UE,Safer Stronger Communities,FP841,Other Minor Supplies Services,5590,Positive Tickets poster design,10/02/2014,65,NET,Greeny Visuals,14423G,378484
Gloucester City Council,23UE,REDACTED,REDACTED,REDACTED,REDACTED,REDACTED,10/02/2014,80,NET,REDACTED,REDACTED,REDACTED
Gloucester City Council,23UE,Armscroft Park Flood Mit S106,LY153,Contract Payments,20,ARMSCROFT PARK WORKS,06/02/2014,13176.11,CAP,Colin Richardson Contractors,13835S,378335
Gloucester City Council,23UE,Cemeteries,HC300,Overtime -Building Maint Staff,1303,"Mechanical sweep 30/12/13, 20/1/2014",06/02/2014,128,NET,Enterprise (Aol) Ltd,06695G,378038
Gloucester City Council,23UE,Homelessness,CH120,Rent In Advance,5516,REDACTED,03/03/2014,280,NET,REDACTED,REDACTED,REDACTED
Gloucester City Council,23UE,Folk Museum,LM210,Security Services Fees,5351,amends to contract 3338600,26/02/2014,88.17,NET,G4s Cash Solutions (Uk) Ltd,04290V,379551
Gloucester City Council,23UE,Client Revs & Bens Contract,RT240,Security Services Fees,5351,CASH HANDLING,26/02/2014,263.41,NET,G4s Cash Solutions (Uk) Ltd,04290V,379553
Gloucester City Council,23UE,Folk Museum,LM210,Security Services Fees,5351,CASH HANDLING,26/02/2014,88.16,NET,G4s Cash Solutions (Uk) Ltd,04290V,379553
Gloucester City Council,23UE,Crematorium,HC200,Memorial Plaques,5053,plaque,26/02/2014,54,NET,Arkell & Hurcombe,59812T,379639
Gloucester City Council,23UE,Website Rebuild,RY573,Consultants Fees,30,REDACTED,26/02/2014,1773.8,CAP,Patzone It Solutions Ltd,13059R,379641
Gloucester City Council,23UE,Off Street Car Parks,PP110,General Repair/Maint Buildings,3000,kingswalk car park: fault on lighting,27/02/2014,139.48,NET,Rf Gardiner Limited,12299B,379435
Gloucester City Council,23UE,Investment Property,RB500,General Repair/Maint Buildings,3000,Shopmobility: Trace fault & re-set,27/02/2014,64,NET,Rf Gardiner Limited,12299B,379203
Gloucester City Council,23UE,Off Street Car Parks,PP110,General Repair/Maint Buildings,3000,Docks Headlease - repair potholes,27/02/2014,209.27,NET,Rf Gardiner Limited,12299B,379206
Gloucester City Council,23UE,Council Streetcare Team,HI101,Signs / Nameplates,3039,Manor Farm etc - Play area signs,26/02/2014,123,NET,Severn Signs Ltd,49841D,379632
Gloucester City Council,23UE,Business Transformation & Tech,RT700,Conference/Meeting Expenses,5510,REDACTED,26/02/2014,130,NET,Civica Services Ltd,58099E,379661
Gloucester City Council,23UE,Financial Services,RT200,Consultants Fees,5349,REDACTED,13/02/2014,3975,NET,Robert Half Ltd,03959K,378258
Gloucester City Council,23UE,Docks Complex - Telephones,RB120,Mobile Phones,5409,calls jan 2014,13/02/2014,2137.63,NET,Everything Everywhere Ltd (T-Mobile),57543S,378799
Gloucester City Council,23UE,REDACTED,REDACTED,REDACTED,REDACTED,REDACTED,13/02/2014,600,NET,REDACTED,REDACTED,REDACTED
Gloucester City Council,23UE,Food Safety,HE100,Fees For Services Received,5350,Environ Health: Laundry,13/02/2014,15,NET,Iron Maidens,02180Y,378803
Gloucester City Council,23UE,Business Transformation & Tech,RT700,Computer Software Maintenance,5427,SUBSCRIPTION 2014/15,13/02/2014,699,NET,Snap Surveys Ltd,05834N,378821
Gloucester City Council,23UE,Wake Room,HC501,Catering Provisions -Food,5110,FOOD,13/02/2014,270.74,NET,3663,55585U,378840
Gloucester City Council,23UE,Tic Rovercard Sales,LT101,Materials For Sale,5080,SALES PERIOD 10,21/02/2014,6072.5,NET,Stagecoach Services Ltd*,56554W,379348
Gloucester City Council,23UE,Business Grants,GY007,Contract Payments,20,Growth accelerator Grant,24/02/2014,300,CAP,Ashgreen Business Services,14445W,379419
Gloucester City Council,23UE,Organisational Health,RC160,Fees For Services Received,5350,OH services for January 14,24/02/2014,465,NET,Industrial Medical & Safety Services Ltd,10668L,379406
Gloucester City Council,23UE,General Works Fund,RY203,Capital General Repairs & Main,13,Engineer attnd Bearlands 28/1/14,24/02/2014,100,CAP,Micro-Vision Fire And Security Ltd,08581R,378514
Gloucester City Council,23UE,REDACTED,REDACTED,REDACTED,REDACTED,REDACTED,25/02/2014,510,NET,REDACTED,REDACTED,REDACTED
Gloucester City Council,23UE,Neighbourhood Partnerships,FP104,Funding Vol&Com Grps-Grants,7100C,neighbourhood grant 2013/14,28/02/2014,366.51,NET,Friends Of Saintbridge Pond,04367J,379790
Gloucester City Council,23UE,Tourism Marketing,LT100,Security Services Fees,5351,Services decurity system,19/02/2014,55,NET,Eke Security Ltd,11519W,379272
Gloucester City Council,23UE,Tic Trading,LT110,Materials For Sale,5080,"glos Tourism: mugs, coasters",19/02/2014,374.24,NET,Norfolk China Ltd,12863S,379274
Gloucester City Council,23UE,Docks Complex - Telephones,RB120,Telephones And Fax,5410,PAYM SmasungS3 Mini Phone,19/02/2014,153,NET,Everything Everywhere Ltd (T-Mobile),02334V,379182
Gloucester City Council,23UE,Civica Admin Charges,RT105,Fees For Services Received,5350,Companies house Account images,19/02/2014,7,NET,Companies House,58954E,378675
Gloucester City Council,23UE,Docks Complex - Catering Servs,RB110,Catering Provisions -Food,5110,Herbert Wse: various foods,27/02/2014,323.63,NET,3663,55585U,379748
Gloucester City Council,23UE,Building Control,PT400,Basic Pay - Temporary Staff,2751,REDACTED,27/02/2014,3081,NET,Thatcher Associates Ltd,14060X,379725
Gloucester City Council,23UE,Crematorium,HC200,Memorial Plaques,5053,Crem: 2xPennine Keepsake,28/02/2014,25,NET,Teleshore (Uk) Ltd,56819G,379660
Gloucester City Council,23UE,Group Mgr Financial Services,GO100,Vocational Training,2970,planning for future financial challenges,28/02/2014,150,NET,Lg Futures,11251S,379801
Gloucester City Council,23UE,Guildhall Bar And Cafe,LA210,Catering Provisions -Food,5110,guildhall: 2ltr Green top milk,18/02/2014,4.96,NET,Total Produce Gloucester,12645E,379208
Gloucester City Council,23UE,Guildhall Bar And Cafe,LA210,Catering Provisions -Food,5110,guildhall: Milk,18/02/2014,4.96,NET,Total Produce Gloucester,12645E,379211
Gloucester City Council,23UE,Docks Complex - Castlemeads Cp,RB210,General Repair/Maint Buildings,3000,Lamp changes & repairs at various cols,12/02/2014,170,NET,Southern Electric Contracting Ltd*,55742C,378136
Gloucester City Council,23UE,City Museum And Art Gallery,LM200,Exhibits And Collections,5038,Loop Nylon for the City Museum,12/02/2014,152.7,NET,Fibrous Ltd,15230L,378655
Gloucester City Council,23UE,Retail Market - Landlord,HM300,General Repair/Maint Buildings,3000,Eastgate Mkt Service visit & batteries,14/02/2014,38,NET,Airvent Systems Limited,51073T,378390
Gloucester City Council,23UE,Guildhall Bar And Cafe,LA210,Catering Provisions -Food,5110,FOOD,14/02/2014,4.96,NET,Total Produce Gloucester,12645E,378819
Gloucester City Council,23UE,Homelessness,CH120,Rent In Advance,5516,REDACTED,18/02/2014,346.15,NET,Donaldson & Newman Ltd,66678G,379265
Gloucester City Council,23UE,Utilities,PT502,Electricity Supply,3110,BLACKFRIARS A4071662,20/02/2014,28.46,NET,British Gas,59061X,379371
Gloucester City Council,23UE,Tic Coach Tickets,LT105,Materials For Sale,5080,NATIONAL EXPRESS LTD 31/1/2014,06/02/2014,10055.95,NET,National Express Ltd,31455K,378391
Gloucester City Council,23UE,Nms Contract,HI102,Contracted Services,6970,TRAFFIC MANAGEMENT,06/02/2014,230,NET,Enterprise (Aol) Ltd,06695G,376162
Gloucester City Council,23UE,Gloucester Guildhall,LA100,Security Services Fees,5351,SIA door staff for Guildhall,07/02/2014,863.38,NET,Nsgl Ltd,12539E,378504
Gloucester City Council,23UE,Safer Stronger Communities,FP841,Other Minor Supplies Services,5590,Twilight visision Impair goggles,07/02/2014,52.33,NET,Dia (Int) Ltd,06918W,378489
Gloucester City Council,23UE,Contact Centre,RB300,Basic Pay -Admin /Prof Staff,2601,REDACTED,07/02/2014,930,NET,Hbhc Synergy Ltd,13363J,378507
Gloucester City Council,23UE,Financial Services,RT200,Basic Pay - Temporary Staff,2751,REDACTED,07/02/2014,330.48,NET,Robert Half Ltd,03959K,378249
Gloucester City Council,23UE,Herbert Reception Upgrade,RY201,Contract Payments,20,Temp Reception Signs,07/02/2014,174,CAP,Squirty Ink,13834P,378239
Gloucester City Council,23UE,Tic Theatre Ticket Sales,LT107,Materials For Sale,5080,CASH ON DELIVERY TICKET SALES,07/02/2014,340,NET,Kings Theatre,54213X,378508
Gloucester City Council,23UE,Contact Centre,RB300,Basic Pay -Admin /Prof Staff,2601,REDACTED,12/02/2014,850,NET,Cps Anystaff Recruitment Ltd,13945D,378355
Gloucester City Council,23UE,Nms Contract,HI102,Contracted Services,6970,Walk Behind Feb 2014,10/02/2014,563.33,NET,Enterprise (Aol) Ltd,06695G,378518
Gloucester City Council,23UE,Docks Complex - Catering Servs,RB110,Catering Provisions -Food,5110,FOOD,14/02/2014,3.1,NET,Total Produce Gloucester,12645E,378956
Gloucester City Council,23UE,Docks Complex - Catering Servs,RB110,Catering Provisions -Food,5110,FOOD,14/02/2014,8.64,NET,Total Produce Gloucester,12645E,378978
Gloucester City Council,23UE,Council Streetcare Team,HI101,General Repair/Maint Buildings,3000,POSTS,14/02/2014,205.23,NET,Nicks & Company (Timber) Ltd,48452E,378827
Gloucester City Council,23UE,Docks Complex - Catering Servs,RB110,Catering Provisions -Food,5110,FOOD,14/02/2014,8.64,NET,Total Produce Gloucester,12645E,378955
Gloucester City Council,23UE,Docks Complex - Catering Servs,RB110,Catering Provisions -Food,5110,FOOD,14/02/2014,15.18,NET,Total Produce Gloucester,12645E,378972
Gloucester City Council,23UE,Docks Complex - Catering Servs,RB110,Catering Provisions -Food,5110,FOOD,14/02/2014,848.06,NET,3663,55585U,379000
Gloucester City Council,23UE,Forest Of Dean Off Street,PT742,Contracted Services,6970,Jan14-variable services,14/02/2014,1197.13,NET,Apcoa Parking (Uk) Ltd,09954M,378528
Gloucester City Council,23UE,Asset Management,RS300,Basic Pay - Temporary Staff,2751,REDACTED,14/02/2014,527,NET,Abatec Ltd,14249Y,378647
Gloucester City Council,23UE,Docks Complex - Catering Servs,RB110,Catering Provisions -Food,5110,FOOD,14/02/2014,7.92,NET,Total Produce Gloucester,12645E,378957
Gloucester City Council,23UE,Financial Services,RT200,Consultants Fees,5349,REDACTED,19/02/2014,2175,NET,Robert Half Ltd,03959K,379092
Gloucester City Council,23UE,Financial Services,RT200,Consultants Fees,5349,REDACTED,19/02/2014,3975,NET,Robert Half Ltd,03959K,379091
Gloucester City Council,23UE,Asset Management,RS300,Basic Pay - Temporary Staff,2751,REDACTED,06/02/2014,449.5,NET,Abatec Ltd,14249Y,378134
Gloucester City Council,23UE,Retail Market - Landlord,HM300,General Repair/Maint Buildings,3000,Market sprinkler inspection,10/02/2014,270,NET,A & E Fire Equipment Limited,54289L,377576
Gloucester City Council,23UE,Council Streetcare Team,HI101,Window Cleaning,3610,"clean Viewing chamber, Eastgate st",11/02/2014,130,NET,Poles Apart Window Cleaning,11636R,378497
Gloucester City Council,23UE,Business Support,PT250,Publications,5060,"Keelings News,6/1/14 onwards paid",11/02/2014,145.2,NET,Keelings Newsagents,55281U,378375
Gloucester City Council,23UE,REDACTED,REDACTED,REDACTED,REDACTED,REDACTED,25/02/2014,641.75,NET,REDACTED,REDACTED,REDACTED
Gloucester City Council,23UE,Gis Development Work,RY555,Contract Payments,20,REDACTED,11/02/2014,1250,CAP,Badenoch & Clark,01536P,378538
Gloucester City Council,23UE,REDACTED,REDACTED,REDACTED,REDACTED,REDACTED,11/02/2014,50,NET,REDACTED,REDACTED,REDACTED
Gloucester City Council,23UE,REDACTED,REDACTED,REDACTED,REDACTED,REDACTED,11/02/2014,80.75,NET,REDACTED,REDACTED,REDACTED
Gloucester City Council,23UE,Stationery Services,RS150,Stationery,5302,PAPER,17/02/2014,451,NET,Premier Paper Group Ltd,09166Y,379097
Gloucester City Council,23UE,Homelessness,CH120,Fees For Services Received,5350,medical report,17/02/2014,20.5,NET,Frampton Surgery,14304S,379069
Gloucester City Council,23UE,Docks Complex - Telephones,RB120,Telephones And Fax,5410,call charges,17/02/2014,2465.75,NET,Gamma Business Communications,10260A,379079
Gloucester City Council,23UE,Docks Complex - Telephones,RB120,Telephones And Fax,5410,Folk Museum TV/HSI payments,,80,NET,Virgin Media Payments Ltd,09376J,379544
Gloucester City Council,23UE,Land Searches,RO300,Fees For Services Received,5350,LAND CHARGES RE SEARCHES,25/02/2014,7650.25,NET,Gloucestershire County Council,18650D,378791
Gloucester City Council,23UE,REDACTED,REDACTED,REDACTED,REDACTED,REDACTED,07/02/2014,1250,NET,REDACTED,REDACTED,REDACTED
Gloucester City Council,23UE,Homelessness,CH120,Rent In Advance,5516,REDACTED,14/02/2014,484.6,NET,Surelet,06858N,379001
Gloucester City Council,23UE,Blackfriars,LA609,Sale Of Goods And Services,9230,SALES FEB 2014,24/02/2014,-16.88,NET,REDACTED,REDACTED,REDACTED
Gloucester City Council,23UE,Civil Parking Enforcement,PT741,Pcn Charges,9450,GO11870733,24/02/2014,70,NET,REDACTED,REDACTED,REDACTED
Gloucester City Council,23UE,Off Street Car Parks,PP110,Pcn Charges,9450,GO52032466,24/02/2014,25,NET,REDACTED,REDACTED,REDACTED
Gloucester City Council,23UE,Retail Market - Landlord,HM300,General Repair/Maint Buildings,3000,Eastgate mkt: engineers installation,24/02/2014,519,NET,Airvent Systems Limited,51073T,378785
Gloucester City Council,23UE,Off Street Car Parks,PP110,General Repair/Maint Buildings,3000,Kingswalk Car Park. DeepClean stairwell,24/02/2014,700,NET,Rj Contracting (Environmental) Ltd,07429H,378428
Gloucester City Council,23UE,Building Control,PT400,Publications,5060,PUBLICATION,04/02/2014,305,NET,Lexis Nexis Ltd,01712U,375340
Gloucester City Council,23UE,Folk Museum,LM210,Publications For Sale,5064,puppets,04/02/2014,296.1,NET,The Puppet Company,14242N,377442
Gloucester City Council,23UE,Docks Complex - Castlemeads Cp,RB210,General Repair/Maint Buildings,3000,grit for car parks,04/02/2014,99,NET,Ken Pink Plant Hire Ltd,56884V,377763
Gloucester City Council,23UE,Homelessness Prevention,CH122,Fees For Services Received,5350,REDACTED,10/02/2014,500,NET,REDACTED,REDACTED,REDACTED
Gloucester City Council,23UE,Homelessness,CH120,Rent In Advance,5516,REDACTED,10/02/2014,453.12,NET,REDACTED,REDACTED,REDACTED
Gloucester City Council,23UE,Wake Room,HC501,Catering Provisions -Food,5110,Arbor: various foods,25/02/2014,298.84,NET,3663,55585U,379509
Gloucester City Council,23UE,General Works Fund,RY203,Consultants Fees,30,REDACTED,25/02/2014,750.5,CAP,Find The Engineer Recruitment Ltd*,12977Z,378353
Gloucester City Council,23UE,Swrda Asset Transfer,RY184,Cap Repair/Maint Fixed Plant,14,PAY & DISPLAY MACHINES,13/02/2014,9135,CAP,Parkeon Ltd,03238G,376562
Gloucester City Council,23UE,Docks Complex - Telephones,RB120,Telephones And Fax,5410,ACCT 510738402,20/02/2014,33,NET,Virgin Media Payments Ltd,09376J,379100
Gloucester City Council,23UE,Docks Complex - Telephones,RB120,Telephones And Fax,5410,ACCT 510738303 LIFT LINE,20/02/2014,13.42,NET,Virgin Media Payments Ltd,09376J,379101
Gloucester City Council,23UE,Environmental Planning,LM340,Clothing,5200,SHOES,21/02/2014,68.25,NET,Safpro Industrial Supply Co,39190W,378848
Gloucester City Council,23UE,Crematorium,HC200,Memorial Plaques,5053,KEEPSAKE,21/02/2014,38,NET,Teleshore (Uk) Ltd,56819G,375359
Gloucester City Council,23UE,Business Transformation & Tech,RT700,Computer Software Maintenance,5427,Intranomic support,03/03/2014,3500,NET,Styletech Solutions Ltd,01930F,379739
Gloucester City Council,23UE,Business Transformation & Tech,RT700,Computer Hardware <5000,5420,Treasury: a USB,24/02/2014,128,NET,Qual Technology,56512N,378509
Gloucester City Council,23UE,Countryside Unit,LP201,Fees For Services Received,5350,REDACTED,03/02/2014,770,NET,REDACTED,REDACTED,REDACTED
Gloucester City Council,23UE,Director Resources,MR102,Fees For Services Received,5350,REDACTED,04/02/2014,1173.5,NET,Wragge & Co Llp,06590J,378298
Gloucester City Council,23UE,Business Support,PT250,Fuel,4012,fuel,04/02/2014,100.08,NET,Allstar Business Solutions Ltd (Arval),06594A,378052
Gloucester City Council,23UE,Countryside Unit,LP201,General Repair/Maint Buildings,3000,GOODS,19/02/2014,16.85,NET,B&Q Trade Account,06346Y,378797
Gloucester City Council,23UE,Disabled Facilities Grants,CY013,Disabled Facility Grants,74,GRANT REF MDF5051,19/02/2014,4976,CAP,Tpg Disableaids,51324R,379291
Gloucester City Council,23UE,Aspire Admin Charges,LC105,Other Minor Income,9900,BAILIFF PAYMENTS 18/02/14,20/02/2014,51,NET,Aspire Sports & Cultural Trust,08135V,379378
Gloucester City Council,23UE,Contact Centre,RB300,Basic Pay -Admin /Prof Staff,2601,REDACTED,26/02/2014,1144.77,NET,One To One Recruitment,04752H,379367
Gloucester City Council,23UE,Homelessness Prevention,CH122,Fees For Services Received,5350,REDACTED,27/02/2014,500,NET,REDACTED,REDACTED,REDACTED
Gloucester City Council,23UE,Legal Services,RS200,Basic Pay -Admin /Prof Staff,2601,REDACTED,17/02/2014,245,NET,Michael Page International Recruitment Ltd,06601P,378734
Gloucester City Council,23UE,Investment Property,RB500,General Repair/Maint Buildings,3000,CREM,17/02/2014,120,NET,Three Counties Drain Service,44033V,378945
Gloucester City Council,23UE,Docks Complex - Catering Servs,RB110,Catering Provisions -Food,5110,"sandwiches, cakes etc w/e 16/2/14",21/02/2014,94.3,NET,Janes Pantry,24500W,379358
Gloucester City Council,23UE,REDACTED,REDACTED,REDACTED,REDACTED,REDACTED,21/02/2014,534,NET,REDACTED,REDACTED,REDACTED
Gloucester City Council,23UE,Homelessness,CH120,Rent In Advance,5516,REDACTED,05/02/2014,484.6,NET,REDACTED,REDACTED,REDACTED
Gloucester City Council,23UE,Civica Admin Charges,RT105,Photocopying,5320,copy costs,10/02/2014,264.28,NET,Ricoh Uk Ltd,07519F,378524
Gloucester City Council,23UE,Flooding And Drainage,HE306,Maint Of Grounds - General,3030,works to Wotton brook @ Armscrscoft Grdn,10/02/2014,180,NET,Rdb Safety Boat Ltd,13507J,378499
Gloucester City Council,23UE,Dclg High St Renewal Fund,FP308,Other Minor Supplies Services,5590,advert,10/02/2014,150,NET,Gtw Media Ltd,14516Y,377247
Gloucester City Council,23UE,Cemeteries,HC300,Trade Refuse Tipping Fees,6297,Green waste,10/02/2014,720,NET,Allstone Sand & Gravel Aggregates Ltd,00940M,378589
Gloucester City Council,23UE,Cctv Revenue Budget,FP501,Security Equipment Serv/Repair,3038,For vehicle and operative,06/02/2014,250,NET,Southern Electric Contracting Ltd*,08337R,378135
Gloucester City Council,23UE,General Drainage Works,PY241,Contract Payments,20,OVERBROOK ROAD FOOTBRIDGE,06/02/2014,3400,CAP,Mr M G Horton T/A H&T Property Maintenance,09210X,378344
Gloucester City Council,23UE,Disabled Facilities Grants,CY013,Disabled Facility Grants,74,REDACTED,06/02/2014,4224,CAP,Beard & Tandy,03160V,378247
Gloucester City Council,23UE,Off Street Car Parks,PP110,General Repair/Maint Buildings,3000,REPAIR 30/08/13,06/02/2014,378.3,NET,Parkeon Ltd,03238G,374813
Gloucester City Council,23UE,Business Transformation & Tech,RT700,Basic Pay - Temporary Staff,2751,20 hours of consultancy services,26/02/2014,600,NET,Ffox Software Ltd,10665T,379626
Gloucester City Council,23UE,Guildhall Bar And Cafe,LA210,Catering Provisions -Food,5110,City Museum - fruit & veg,26/02/2014,113.83,NET,Woody's Fruit & Veg,11798L,379664
Gloucester City Council,23UE,Financial Services,RT200,Consultants Fees,5349,REDACTED,26/02/2014,2175,NET,Robert Half Ltd,03959K,378776
Gloucester City Council,23UE,Off Street Car Parks,PP110,General Repair/Maint Buildings,3000,Longsmith St CarP:Lighting Cable joints,27/02/2014,78.84,NET,Rf Gardiner Limited,12299B,379271
Gloucester City Council,23UE,Docks Complex - Catering Servs,RB110,Operational Equipment <5000,5012,"Callout, labour & parts",26/02/2014,76.92,NET,Rs Maintenance,14314N,379657
Gloucester City Council,23UE,Corporate Expenses,RC110,Subscriptions,5600,LGiU affiliation fee 2014,26/02/2014,3100,NET,Local Government Information Unit,51597A,379652
Gloucester City Council,23UE,Postal Services,RS120,Postages,5400,envelopes 1st & 2nd class,26/02/2014,284.32,NET,Tompla Uk Ltd,13782H,379659
Gloucester City Council,23UE,Avenger Task Force,FP842,Other Minor Supplies Services,5590,REDACTED,05/02/2014,140,NET,Through The Gateway,14036U,378384
Gloucester City Council,23UE,Retail Market - Landlord,HM300,Operational Equipment <5000,5012,"Eastgate Mkt, rental of P75S compactor",13/02/2014,280.56,NET,System Rental Uk Ltd,03239E,378786
Gloucester City Council,23UE,City Museum Catering,LM202,Catering Provisions -Food,5110,FOOD,13/02/2014,4.96,NET,Total Produce Gloucester,12645E,378825
Gloucester City Council,23UE,City Museum Catering,LM202,Catering Provisions -Food,5110,HIRE JAN 2014,13/02/2014,135,NET,La Spaziale Uk Ltd,11823P,378829
Gloucester City Council,23UE,Docks Complex - Catering Servs,RB110,Catering Provisions -Food,5110,Catering w/e 2/2/14,13/02/2014,85.22,NET,Janes Pantry,24500W,378348
Gloucester City Council,23UE,Client Revs & Bens Contract,RT240,Bailiffs Fees,5368,FEES & VAT,28/02/2014,42.5,NET,Bristow & Sutor,05450M,378765
Gloucester City Council,23UE,Wake Room,HC501,Catering Provisions -Food,5110,FOOD,18/02/2014,40.47,NET,Total Produce Gloucester,12645E,378662
Gloucester City Council,23UE,Postal Services,RS120,Postages,5400,ACCT 0074842000 W/E 25/01/14,18/02/2014,299.56,NET,Royal Mail S.Wales & South West,35830S,378847
Gloucester City Council,23UE,City Museum Catering,LM202,Catering Provisions -Food,5110,Guildhall: milk,27/02/2014,4.96,NET,Total Produce Gloucester,12645E,379724
Gloucester City Council,23UE,General Works Fund,RY203,Purchase Cost -Land,1,Bearland Lodge: re-test electrics,27/02/2014,305.68,CAP,Rf Gardiner Limited,12299B,379204
Gloucester City Council,23UE,Off Street Car Parks,PP110,General Repair/Maint Buildings,3000,Westgate st Car Park: Board up window,27/02/2014,254.41,NET,Rf Gardiner Limited,12299B,379202
Gloucester City Council,23UE,Disabled Facilities Grants,CY013,Disabled Facility Grants,74,REDACTED,27/02/2014,6471,CAP,Pinetree (Gloucester) Ltd,53288Y,379669
Gloucester City Council,23UE,REDACTED,REDACTED,REDACTED,REDACTED,REDACTED,10/02/2014,150,NET,REDACTED,REDACTED,REDACTED
Gloucester City Council,23UE,Guildhall Bar And Cafe,LA210,Catering Provisions -Food,5110,Guildhall: milk,18/02/2014,4.96,NET,Total Produce Gloucester,12645E,379210
Gloucester City Council,23UE,Guildhall Bar And Cafe,LA210,Catering Provisions -Liquor,5111,guildhall: Gases for beer,18/02/2014,59.14,NET,Boc Ltd,59172L,379217
Gloucester City Council,23UE,Off Street Car Parks,PP110,General Repair/Maint Buildings,3000,Lamp changes & repairs at various cols,12/02/2014,753.03,NET,Southern Electric Contracting Ltd*,55742C,378136
Gloucester City Council,23UE,Parks Contract Management,LP100,Maint Of Grounds - General,3030,Alma Place Play area surfacing repair,13/02/2014,325,NET,Greenfields Garden Services Ltd,48130G,378505
Gloucester City Council,23UE,Investment Property,RB500,Lift Maintenance,3051,Pickerings-0070854,13/02/2014,75.08,NET,Pickerings Europe Ltd*,58816U,377345
Gloucester City Council,23UE,Off Street Car Parks,PP110,Fees For Services Received,5350,"services: airtime, Archipel, Parkfolio",14/02/2014,758.64,NET,Parkeon Ltd,03238G,378043
Gloucester City Council,23UE,Docks Complex - Services,RB100,General Repair/Maint Buildings,3000,NORTH WAREHOUSE,14/02/2014,685.98,NET,Hewer Facilities Mgt Ltd,05232A,377509
Gloucester City Council,23UE,Printing,RP103,Fees For Services Received,5350,Print room sales Jan 2014 (VAT & noVAT),14/02/2014,1156.67,NET,Alpha Colour Printers Ltd,00945B,378802
Gloucester City Council,23UE,Utilities,PT502,Electricity Supply,3110,ROMAN EXCAVATIONS,,822.98,NET,Southern Electric,05714A,379229
Gloucester City Council,23UE,Play Area Refurbishment,LY071,Contract Payments,20,Env Sup serv: Picnic table assembly,20/02/2014,375,CAP,Centrewire Ltd,54156P,379270
Gloucester City Council,23UE,Mortgage Rescue,CH128,Fees For Services Received,5350,REDACTED,06/02/2014,387.6,NET,One To One Recruitment,04752H,378434
Gloucester City Council,23UE,Business Transformation & Tech,RT700,Computer Software Maintenance,5427,adobe & ROCC pdf tools,07/02/2014,1516.67,NET,Rocc Computers Ltd,56446A,378494
Gloucester City Council,23UE,Website Rebuild,RY573,Consultants Fees,30,5 days (new rate),07/02/2014,1267,CAP,Patzone It Solutions Ltd,13059R,378495
Gloucester City Council,23UE,Grants To Voluntary Sector,FG100,Funding Vol&Com Grps-Grants,7100C,GAVCA-community grant 4 of 4,12/02/2014,8667,NET,Gavca,06129J,378522
Gloucester City Council,23UE,Cedar Upgrade 2011/12,RY250,Contract Payments,20,Acc&Excheq: Expenses recharge car hire,26/02/2014,38.25,CAP,Advanced Business Solutions,06072N,379281
Gloucester City Council,23UE,Building Control,PT400,Basic Pay - Temporary Staff,2751,REDACTED,10/02/2014,2277,NET,Brg Interim Solutions,14065L,378531
Gloucester City Council,23UE,Homelessness,CH120,Rent In Advance,5516,REDACTED,28/02/2014,207.69,NET,REDACTED,REDACTED,REDACTED
Gloucester City Council,23UE,Docks Complex - Catering Servs,RB110,Catering Provisions -Food,5110,FOOD,14/02/2014,21.7,NET,Total Produce Gloucester,12645E,378958
Gloucester City Council,23UE,Docks Complex - Catering Servs,RB110,Catering Provisions -Food,5110,FOOD,14/02/2014,56.65,NET,Total Produce Gloucester,12645E,378983
Gloucester City Council,23UE,Cctv Revenue Budget,FP501,Security Equipment Serv/Repair,3038,POLICE CCTV,14/02/2014,85,NET,Wireless Cctv Ltd,02059U,378950
Gloucester City Council,23UE,Docks Complex - Catering Servs,RB110,Catering Provisions -Food,5110,FOOD,14/02/2014,15.76,NET,Total Produce Gloucester,12645E,378980
Gloucester City Council,23UE,Legal Services,RS200,Basic Pay -Admin /Prof Staff,2601,REDACTED,14/02/2014,487.29,NET,Premiere Employment Ltd,55468Z,378838
Gloucester City Council,23UE,REDACTED,REDACTED,REDACTED,REDACTED,REDACTED,14/02/2014,214.24,NET,Nft Logistics Ltd,13505N,378839
Gloucester City Council,23UE,Cemeteries,HC300,Routine R And M - Vehicles,4011,SEBO VAC,24/02/2014,480,NET,Vac Doctors,49423C,378947
Gloucester City Council,23UE,Cemeteries,HC300,Maint Of Grounds - General,3030,STAKES,14/02/2014,79,NET,Millington & Ramstedt Ltd,29815S,378991
Gloucester City Council,23UE,Cemeteries,HC300,Maint Of Grounds - General,3030,CONCRETE,14/02/2014,11.58,NET,Millington & Ramstedt Ltd,29815S,378993
Gloucester City Council,23UE,Docks Complex - Catering Servs,RB110,Catering Provisions -Food,5110,food,14/02/2014,334.67,NET,3663,55585U,378998
Gloucester City Council,23UE,Environmental Planning,LM340,Clothing,5200,Personnel Serv: 2 x safety helmet,14/02/2014,12.06,NET,Safpro Industrial Supply Co,39190W,378777
Gloucester City Council,23UE,Cemeteries,HC300,Maint Of Grounds - General,3030,CREOCOTE,14/02/2014,65.74,NET,Millington & Ramstedt Ltd,29815S,378994
Gloucester City Council,23UE,Docks Complex - Catering Servs,RB110,Catering Provisions -Food,5110,FOOD,14/02/2014,8.64,NET,Total Produce Gloucester,12645E,378963
Gloucester City Council,23UE,Docks Complex - Catering Servs,RB110,Catering Provisions -Food,5110,FOOD,14/02/2014,30.39,NET,Total Produce Gloucester,12645E,378968
Gloucester City Council,23UE,Business Support,PT250,Fuel,4012,fuel,19/02/2014,63.43,NET,Allstar Business Solutions Ltd (Arval),06594A,378879
Gloucester City Council,23UE,Postal Services,RS120,Postages,5400,Regeneration: Royal Mail,19/02/2014,1262.6,NET,Royal Mail S.Wales & South West,35830S,378881
Gloucester City Council,23UE,Senior Management Restructurin,RO200,Fees For Services Received,5350,REcruit ad: Commercial Serv Review Mgr,19/02/2014,3715,NET,Alexander Beaver Associates,06515Z,378244
Gloucester City Council,23UE,Client Revs & Bens Contract,RT240,Fees For Services Received,5350,NAFN APR-SEP13 charges,19/02/2014,166,NET,Brighton & Hove City Council,00078J,373428
Gloucester City Council,23UE,Cedar Upgrade 2011/12,RY250,Contract Payments,20,Finances: expenses recharges & mileage,26/02/2014,141.19,CAP,Advanced Business Solutions,06072N,379282
Gloucester City Council,23UE,Hkp Accomodation Review,RY163,Contract Payments,20,"Phillpotts:remove partition,move coil",27/02/2014,1491,CAP,Rf Gardiner Limited,12299B,378789
Gloucester City Council,23UE,Docks Complex - Telephones,RB120,Telephones And Fax,5410,acct SS82371162 JAN-MAR14,06/02/2014,66.07,NET,Bt Payment Services Ltd,56283E,377376
Gloucester City Council,23UE,Guildhall Bar And Cafe,LA210,Catering Provisions -Food,5110,"various food items, Museum Art Gallery",07/02/2014,220.84,NET,Woodward Foodservice,10714F,378478
Gloucester City Council,23UE,Civil Parking Enforcement,PT741,On Street Parking Charges,6550,Oct13 parking income,10/02/2014,54096.93,NET,Gloucestershire County Council,18650D,375028
Gloucester City Council,23UE,Civil Parking Enforcement,PT741,On Street Parking Charges,6550,Parking income Nov13,10/02/2014,29614.19,NET,Gloucestershire County Council,18650D,376069
Gloucester City Council,23UE,Blackfriars,LA609,Fees For Services Received,5350,Blackfriars priory tour 6/1/2014,11/02/2014,35,NET,REDACTED,REDACTED,REDACTED
Gloucester City Council,23UE,Health & Safety,EH110,Ni - Technical Staff,1559,Docks/N warehouse carry chair service,25/02/2014,145,NET,Evac+Chair International Ltd,10907S,379573
Gloucester City Council,23UE,Hkp Accomodation Review,RY163,Contract Payments,20,REDACTED,25/02/2014,161.5,CAP,Find The Engineer Recruitment Ltd*,12977Z,379583
Gloucester City Council,23UE,Docks Complex - Telephones,RB120,Telephones And Fax,5410,acct VP75978270 JAN14,25/02/2014,4882.91,NET,Bt Payment Services Ltd,56283E,377282
Gloucester City Council,23UE,City Museum Catering,LM202,Catering Provisions -Food,5110,FOOD,14/02/2014,151.83,NET,Woodward Foodservice,10714F,378861
Gloucester City Council,23UE,Guildhall Bar And Cafe,LA210,Catering Provisions -Food,5110,FOOD,14/02/2014,119.02,NET,Woodward Foodservice,10714F,378862
Gloucester City Council,23UE,Guildhall Bar And Cafe,LA210,Catering Provisions -Food,5110,FOOD,14/02/2014,168.76,NET,Woodward Foodservice,10714F,378841
Gloucester City Council,23UE,Stationery Services,RS150,Stationery,5302,STATIONERY,17/02/2014,2.54,NET,Lyreco Uk Ltd,11746G,379081
Gloucester City Council,23UE,Cedar Upgrade 2011/12,RY250,It Software,57,TRAINING,17/02/2014,3595,CAP,Software Box Ltd,14185D,379094
Gloucester City Council,23UE,Homelessness Prevention,CH122,Fees For Services Received,5350,REDACTED,17/02/2014,20.5,NET,Quedgeley Medical Centre,04984B,379099
Gloucester City Council,23UE,Director Resources,MR102,Fees For Services Received,5350,REDACTED,21/02/2014,1911.5,NET,Wragge & Co Llp,06590J,379423
Gloucester City Council,23UE,Business Support,PT250,Tyres,4014,tyres for VX03 OBW,25/02/2014,201.16,NET,Ats Euromaster Ltd,06005E,379580
Gloucester City Council,23UE,Senior Management Restructurin,RO200,Fees For Services Received,5350,Consultancy & Mileage,26/02/2014,3718.4,NET,Alexander Beaver Associates,06515Z,378243
Gloucester City Council,23UE,Homelessness Prevention,CH122,Fees For Services Received,5350,REDACTED,14/02/2014,550,NET,Surelet,06858N,379001
Gloucester City Council,23UE,Homelessness,CH120,Rent In Advance,5516,REDACTED,20/02/2014,484.6,NET,Michael Tuck Lettings,06755A,379331
Gloucester City Council,23UE,Homelessness Prevention,CH122,Fees For Services Received,5350,REDACTED,10/02/2014,600,NET,REDACTED,REDACTED,REDACTED
Gloucester City Council,23UE,Wake Room,HC501,Catering Provisions -Food,5110,"Arbor: meat, cheese, salad items",11/02/2014,69.76,NET,Total Produce Gloucester,12645E,378670
Gloucester City Council,23UE,Wake Room,HC501,Catering Provisions -Food,5110,"Arbor: salad, egg",11/02/2014,26.88,NET,Total Produce Gloucester,12645E,378672
Gloucester City Council,23UE,Wake Room,HC501,Catering Provisions -Food,5110,Arbor: Turkey & veg,11/02/2014,13.5,NET,Total Produce Gloucester,12645E,378683
Gloucester City Council,23UE,Wake Room,HC501,Catering Provisions -Food,5110,"Arbor: MILK, BREAD, salad items",11/02/2014,42.35,NET,Total Produce Gloucester,12645E,378658
Gloucester City Council,23UE,Wake Room,HC501,Catering Provisions -Liquor,5111,Arbor: Alcohol & Coke,11/02/2014,74.96,NET,Cellar Supplies Cheltenham Ltd,01563L,378653
Gloucester City Council,23UE,Parks Contract Management,LP100,Maint Of Grounds - General,3030,NAPIER STREET,18/02/2014,229.5,NET,Enterprise (Aol) Ltd,06695G,378831
Gloucester City Council,23UE,Robinswoodhill Trading Account,LP203,Maint Of Grounds - General,3030,SEATING,18/02/2014,473,NET,Streetmaster Products,00534D,379222
